Workbook

Sheet от 1года до 3 лет
A1: Утверждаю | H1: Согласовано
A2: Директор ООО"АБК - Пэймент" | H2: Руководитель дошкольной образовательной
A3: Рахматуллин Р.Р. | H3: организации
E5: Примерное 10-дневное меню
E6: для организации питания детей в дошкольных учреждениях
E7: с 12 - часовым пребыванием от 1 года до 3 лет
A8: День 1 - ый
A9: Наименование блюд и | C9: Масса | D9: Кол - во | E9: Кол - во | F9: Пищевые вещества | I9: Энергетическая | J9: витамин | K9: Сборник
A10: продуктов | C10: порции | D10: (в гр ) | E10: (в гр ) | I10: ценность | K10: рецептур
D11: брутто | E11: нетто | F11: белки | G11: жиры | H11: угл-ды | I11: Ккал | J11: С
A13: Каша "Дружба" молочная с маслом сливочным | C13: 140/3 | F13: 4.22 | G13: 4.92 | H13: 23.38 | I13: 155.56 | J13: 0.67 | K13: ТТК №7Д
B14: Крупа рисовая | D14: 10 | E14: 10
B15: Крупа пшенная | D15: 7.5 | E15: 7.5
B16: Молоко | D16: 75 | E16: 75
B17: Вода | D17: 48 | E17: 48
B18: Сахар | D18: 2 | E18: 2
B19: соль иодированная | D19: 0.4 | E19: 0.4
B20: Масло сливочное | D20: 3 | E20: 3
A21: Кофейный напиток с молоком | C21: 180 | F21: 2.85 | G21: 2.41 | H21: 14.35 | I21: 90.54 | J21: 1.17 | K21: №395Дели2010
B22: Кофейный напиток | D22: 2.5 | E22: 2.5
B23: Сахар | D23: 6 | E23: 6
B24: Молоко | D24: 90 | E24: 90
B25: Вода | D25: 108 | E25: 108
A26: Бутерброд с маслом сливочным | C26: 25/5 | F26: 1.92 | G26: 4.36 | H26: 12.92 | I26: 98.50 | K26: №1 Дели2010
B27: Батон нарезной | D27: 25 | E27: 25
B28: Масло сливочное | D28: 5 | E28: 5
A29: Итого: | C29: 353 | F29: =F13+F21+F26 -> 8.99 | G29: =G13+G21+G26 -> 11.69 | H29: =H13+H21+H26 -> 50.66 | I29: =I13+I21+I26 -> 344.60 | J29: =J13+J21+J26 -> 1.84
B30: 2 - ой ЗАВТРАК
A31: Сок | C31: 200 | D31: 200 | E31: 200 | F31: 1.00 | H31: 20.20 | I31: 84.80 | J31: 4.00 | K31: №418 Дели2016
A32: в ассортименте в инд.упаковке
A33: Итого: | C33: 200 | F33: =F31 -> 1.00 | G33: =G31 -> 0.00 | H33: =H31 -> 20.20 | I33: =I31 -> 84.80 | J33: =J31 -> 4.00
B34: ОБЕД
A35: Салат из моркови припущенной с яблоками | C35: 40 | F35: 0.42 | G35: 0.07 | H35: 3.45 | I35: 16.16 | J35: 1.750 | K35: ТТК от 25.01.2023
B36: морковь | D36: 40.88 | E36: 32.70
B37: масса припущенной моркови | E37: 30.00
B38: яблоки | D38: 11.40 | E38: 10.00
B39: сахар | D39: 0.40 | E39: 0.40
A40: Суп картофельный с вермишелью и с мясными фрикадельками | C40: 150/10 | F40: 3.95 | G40: 3.56 | H40: 10.51 | I40: 97.15 | J40: 5.190 | K40: №88 СБ дошк 2016
B41: говядина б/к (котлетное мясо) | D41: 11.97 | E41: 11.4
B42: или фарш говяжий | D42: 11.97 | E42: 11.4
B43: Лук репчатый | D43: 1.19 | E43: 1
B44: Яйцо | D44: 0.96 | E44: 0.8
B45: Вода для фарша | D45: 1 | E45: 1
B46: соль иодированная | D46: 0.1 | E46: 0.1
E47: 14.3
B48: масса готовых фрикаделек | E48: 10
B49: Картофель | D49: 59.90 | E49: 45.00
B50: вермишель | D50: 6.00 | E50: 6.00
B51: Морковь | D51: 7.50 | E51: 6.00
B52: Лук репчатый | D52: 7.20 | E52: 6.00
B53: Масло растительное | D53: 1.50 | E53: 1.50
B54: соль иодированная | D54: 0.50 | E54: 0.50
B55: Вода | D55: 105.00 | E55: 105.00
A56: Котлеты рубленные из говядины | C56: 50 | F56: 8.42 | G56: 9.35 | H56: 8.22 | I56: 150.76 | J56: 0.600 | K56: ТТК от 25.01.2023
B57: говядина (котлетное мясо б/к) | D57: 36.57 | E57: 35
B58: или фарш говяжий | D58: 36.75 | E58: 35
B59: лук репчатый | D59: 10.4 | E59: 8.75
B60: Хлеб пшеничный | D60: 8.13 | E60: 8.13
B61: Вода | D61: 5.2 | E61: 5.2
B62: сухари панировочные | D62: 2.8 | E62: 2.8
B63: соль иодированная | D63: 0.4 | E63: 0.4
B64: масса полуфабриката | E64: 61.9
B65: Масло растительное | D65: 0.60 | E65: 0.60
A66: Капуста тушеная | C66: 120 | F66: 2.45 | G66: 4.42 | H66: 9.47 | I66: 92.40 | J66: 20.500 | K66: №354 сбдошк2016
B67: Капуста свежая | D67: 172.00 | E67: 137.60
B68: Лук репчатый | D68: 5.76 | E68: 4.80
B69: Морковь | D69: 3.00 | E69: 2.40
B70: Томатная паста | D70: 2.88 | E70: 2.88
B71: Мука пшеничная | D71: 1.44 | E71: 1.44
B72: Масло растительное | D72: 4.20 | E72: 4.20
B73: Сахар | D73: 0.90 | E73: 0.90
B74: соль иодированная | D74: 0.45 | E74: 0.45
A75: Напиток из сухофруктов | C75: 150 | F75: 0.50 | G75: 0.07 | H75: 24.01 | I75: 100 | J75: 0.540 | K75: №394 Сб дошк 2016
B76: сухофрукты | D76: 12.75 | E76: 12.50
B77: Сахар | D77: 5.00 | E77: 5.00
B78: вода | D78: 152.00 | E78: 152.00
A79: Хлеб ржаной | C79: 35 | D79: 35 | E79: 35 | F79: 2.31 | G79: 0.42 | H79: 13.86 | I79: 69.30 | K79: табл 6 стр 144,Дели + 2012
A80: Итого: | C80: 555.00 | F80: =F35+F40+F56+F66+F75+F79 -> 18.06 | G80: =G35+G40+G56+G66+G75+G79 -> 17.88 | H80: =H35+H40+H56+H66+H75+H79 -> 69.52 | I80: 525.37 | J80: =J35+J40+J56+J66+J75+J79 -> 28.58
B81: ПОЛДНИК
A82: Кисломолочный напиток | C82: 150/2 | F82: 4.35 | G82: 3.75 | H82: 8.00 | I82: 83.00 | J82: 1.05 | K82: №420 Сб дошк 2016
A83: (Кефир,ряженка,катык,напиток ацидофильный) | B83: кисломолочный напиток | D83: 155 | E83: 150
B84: сахар | D84: 2 | E84: 2
A85: Кондитерское изделие | B85: вафли | C85: 20 | D85: 20.00 | E85: 20.00 | F85: 0.75 | G85: 6.10 | H85: 12.50 | I85: 108.50 | K85: табл 6 стр 136,Ддели +,2012
A86: Итого: | C86: 172 | F86: =F82+F85 -> 5.10 | G86: =G82+G85 -> 9.85 | H86: =H82+H85 -> 20.50 | I86: =I82+I85 -> 191.50 | J86: =J82+J85 -> 1.05
B87: УЖИН
A88: Пудинг рыбный | C88: 45/15 | F88: 8.98 | G88: 2.93 | H88: 4.40 | I88: 80.00 | J88: 0.12 | K88: №286 СБ дошк 2016
B89: рыба (минтай с/м БГ) | D89: 51.54 | E89: 37.9
B90: масса отварной рыбы | E90: 30
B91: Хлеб пшеничный | D91: 6.2 | E91: 6.2
B92: яйцо | D92: 4.8 | E92: 4
B93: молоко | D93: 9 | E93: 9
B94: масло сливочное | D94: 1.7 | E94: 1.7
B95: соль иодированная | D95: 0.3 | E95: 0.3
B96: Масло растительное | D96: 0.8 | E96: 0.8
B97: масса пудинга | E97: 45
B98: Соус молочный
B99: молоко | D99: 7.5 | E99: 7.5
B100: масло сливочное | D100: 0.8 | E100: 0.8
B101: Мука пшеничная | D101: 0.8 | E101: 0.8
B102: Вода | D102: 7.5 | E102: 7.5
B103: Сахар | D103: 0.15 | E103: 0.15
B104: соль иодированная | D104: 0.09 | E104: 0.09
B105: масса соуса | E105: 15
A106: Пюре Картофельное | C106: 120 | F106: 2.45 | G106: 3.84 | H106: 16.35 | I106: 109.80 | J106: 14.53 | K106: № 339 СБ дошк 2016
B107: Картофель | D107: 136.80 | E107: 102.60
B108: Молоко | D108: 18.96 | E108: 18.00
B109: Масло сливочное | D109: 4.20 | E109: 4.20
B110: соль иодированная | D110: 0.45 | E110: 0.45
A111: Чай с сахаром | C111: 150/5 | F111: 0.0525 | G111: 0.015 | H111: 5.02 | I111: 20.08 | J111: 0.02 | K111: №411 сб дошк 2016
B112: чай весовой | D112: 0.4 | E112: 0.4
B113: Сахар | D113: 5 | E113: 5
B114: Вода | D114: 150 | E114: 150
A115: Хлеб пшеничный | C115: 25 | D115: 25.00 | E115: 25.00 | F115: 1.90 | G115: 0.20 | H115: 12.30 | I115: 58.75 | J115: 0.00 | K115: табл 6 стр 134,Дели + 2012
A116: Итого: | C116: 360.00 | F116: =F88+F106+F111+F115 -> 13.38 | G116: =G88+G106+G111+G115 -> 6.99 | H116: =H88+H106+H111+H115 -> 38.07 | I116: =I88+I106+I111+I115 -> 268.63 | J116: =J88+J106+J111+J115 -> 14.67
A117: ВСЕГО: | C117: =C29+C33+C80+C86+C116 -> 1640.00 | F117: =F29+F33+F80+F86+F116 -> 46.53 | G117: =G29+G33+G80+G86+G116 -> 46.40 | H117: =H29+H33+H80+H86+H116 -> 198.94 | I117: =I29+I33+I80+I86+I116 -> 1414.90 | J117: =J29+J33+J80+J86+J116 -> 50.14
A119: День 2- ой
A120: Наименование блюд и | C120: Масса | D120: Кол - во | E120: Кол - во | F120: Пищевые вещества | I120: Энергетическая | J120: Витамин | K120: Сборник
A121: продуктов | C121: порции | D121: (в гр ) | E121: (в гр ) | I121: ценность | K121: рецептур
D122: брутто | E122: нетто | F122: белки | G122: жиры | H122: угл-ды | I122: Ккал | J122: С
B123: ЗАВТРАК
A124: Каша полбяная молочная с маслом сливочным | C124: 140/3 | F124: 3.76 | G124: 6.13 | H124: 22.96 | I124: 162.00 | K124: ТТК №1Д
B125: Крупа полбяная | D125: 18 | E125: 18
B126: Молоко | D126: 70 | E126: 70
B127: вода | D127: 53 | E127: 53
B128: Сахар | D128: 2 | E128: 2
B129: соль иодированная | D129: 0.4 | E129: 0.4
B130: Масло сливочное | D130: 3 | E130: 3
A131: Какао с молоком | C131: 180 | F131: 3.67 | G131: 3.19 | H131: 15.82 | I131: 106.74 | J131: 1.43 | K131: №397 Дели2010
B132: Какао-порошок | D132: 2 | E132: 2
B133: Сахар | D133: 6 | E133: 6
B134: Молоко | D134: 110 | E134: 110
B135: Вода | D135: 80 | E135: 80
A136: Бутерброд с сыром, маслом сливочным | C136: 25/10/5 | F136: 4.55 | G136: 7.02 | H136: 12.92 | I136: 132.83 | J136: 0.07 | K136: №3 сб дошк2016
B137: Батон нарезной | D137: 25 | E137: 25
B138: Сыр | D138: 10.2 | E138: 10
B139: Масло сливочное | D139: 5 | E139: 5
A140: Итого: | C140: 363 | F140: =F124+F131+F136 -> 11.98 | G140: =G124+G131+G136 -> 16.34 | H140: =H124+H131+H136 -> 51.70 | I140: =I124+I131+I136 -> 401.57 | J140: =J124+J131+J136 -> 1.50
B141: 2 - ой ЗАВТРАК
A142: Фрукты свежие | C142: 100 | D142: 100 | E142: 100 | F142: 0.40 | G142: 0.40 | H142: 9.80 | I142: 47.00 | J142: 10.00 | K142: №386 СБ
A143: (яблоки,или апельсин, или банан,или мандарин ) | K143: дошк.2016
A144: Итого: | C144: 100 | F144: =F142 -> 0.40 | G144: =G142 -> 0.40 | H144: =H142 -> 9.80 | I144: =I142 -> 47.00 | J144: =J142 -> 10.00
B145: ОБЕД
A146: Салат из картофеля с солеными огурцами | C146: 40 | F146: 0.49 | G146: 3.14 | H146: 3.58 | I146: 44.56 | J146: 2.41 | K146: №23 сб дошк2016
B147: огурцы соленые | D147: 21.84 | E147: 12.00
B148: картофель | D148: 21.92 | E148: 16.00
B149: морковь | D149: 10.24 | E149: 8.00
B150: лук репчатый | D150: 2.40 | E150: 2.00
B151: масло растительное | D151: 2.00 | E151: 2.00
A152: Борщ со свежей капустой, картофелем на курином бульоне,со сметаной | C152: 150/7 | F152: 1.26 | G152: 4.00 | H152: 6.81 | I152: 73.58 | J152: 6.43 | K152: №63 сб дошк2016
B153: Капуста свежая | D153: 15.6 | E153: 12.5
B154: Картофель | D154: 16.63 | E154: 12.5
B155: Морковь | D155: 11.25 | E155: 9.0
B156: Лук репчатый | D156: 7.80 | E156: 6.5
B157: Свекла | D157: 32 | E157: 25.0
B158: Сахар | D158: 1.5 | E158: 1.5
B159: Масло растительное | D159: 3.0 | E159: 3.0
B160: соль иодированная | D160: 0.65 | E160: 0.7
B161: Бульон | D161: 120 | E161: 120.0
B162: Сметана | D162: 7.0 | E162: 7.0
A163: Фрикадельки куриные в молочном соусе | C163: 40/20 | F163: 5.99 | G163: 7.13 | H163: 5.16 | I163: 109.04 | J163: 0.47 | K163: № 325 сб дошк 2016
B164: цыплята - бройлеры с/м | D164: 45.6 | E164: 29.3
B165: или фарш куриный | D165: 30.77 | E165: 29.3
B166: Хлеб пшеничный | D166: 7.3 | E166: 7.3
B167: Вода | D167: 9.0 | E167: 9.0
B168: соль иодированная | D168: 0.3 | E168: 0.3
B169: Масса полуфабриката | E169: 46.0
B170: Масло растительное | D170: 0.6 | E170: 0.6
B171: Соус молочный: | E171: 20.0
B172: Молоко | D172: 10.0 | E172: 10.0
B173: Масло сливочное | D173: 1.04 | E173: 1.0
B174: Мука пшеничная | D174: 1.04 | E174: 1.0
B175: Вода | D175: 10.0 | E175: 10.0
B176: Сахар | D176: 0.2 | E176: 0.2
B177: соль иодированная | D177: 0.2 | E177: 0.2
A178: Макаронные изделия отварные с маслом сливочным | C178: 110/3 | F178: 4.17 | G178: 2.66 | H178: 23.45 | I178: 134.38 | J178: 0.00 | K178: №219 Сб дошк.2016
B179: макаронные изделия | D179: 38.5 | E179: 38.5
B180: вода | D180: 231.0 | E180: 231.0
B181: соль иодированная | D181: 0.45 | E181: 0.45
B182: масло сливочное | D182: 3 | E182: 3
A183: Кисель | C183: 150 | F183: 0.45 | G183: 0.08 | H183: 22.65 | I183: 92.70 | J183: 0.83 | K183: №648 сбшк2004
B184: Кисель-концентрат | D184: 17.5 | E184: 17.5
B185: Сахар | D185: 5 | E185: 5
B186: вода | D186: 150 | E186: 150
A187: Хлеб ржаной | C187: 35 | D187: 35 | E187: 35 | F187: 2.31 | G187: 0.42 | H187: 13.86 | I187: 69.30 | K187: табл 6 стр 144,Дели + 2012
A188: Итого: | C188: 555 | F188: =F146+F152+F163+F178+F183+F187 -> 14.67 | G188: =G146+G152+G163+G178+G183+G187 -> 17.43 | H188: 75.51 | I188: 523.56 | J188: 10.14
B189: ПОЛДНИК
A190: Кисломолочный напиток | C190: 150 | F190: 4.35 | G190: 3.75 | H190: 6.30 | I190: 76.50 | J190: 0.45 | K190: №386 Сб дошк 2017
A191: (кефир,ряженка,катык,напиток ацидофильный/йогурт) | B191: кисломолочный напиток | D191: 155 | E191: 150
A192: Булочка дорожная | C192: 50 | F192: 3.39 | G192: 6.98 | H192: 21.07 | I192: 160.50 | K192: №453 сб дошк2016
B193: Мука пшеничная | D193: 30.50 | E193: 30.00
B194: мука пшеничная на подпыл | D194: 1.00 | E194: 1.00
B195: Сахар | D195: 6.00 | E195: 6.00
B196: Масло сливочное | D196: 6.50 | E196: 6.50
B197: соль иодированная | D197: 0.30 | E197: 0.30
B198: дрожжи сухие | D198: 0.20 | E198: 0.20
B199: вода | D199: 15.30 | E199: 15.30
B200: масса полуфабриката | E200: 57.00
B201: для крошки:
B202: мука пшеничная | D202: 1.20 | E202: 1.20
B203: масло сливочное | D203: 1.00 | E203: 1.00
... 834 more rows

Sheet от 3 до 7 лет
A1: Утверждаю | H1: Согласовано
A2: Директор ООО"АБК - Пэймент" | H2: Руководитель дошкольной образовательной
A3: Рахматуллин Р.Р. | H3: организации
C5: Примерное 10-дневное меню
C6: для организации питания детей в дошкольных учреждениях
C7: с 12 - часовым пребыванием от 3 до 7 лет
A8: День 1 - ый
A9: Наименование блюд и | C9: Масса | D9: Кол - во | E9: Кол - во | F9: Пищевые вещества | I9: Энергетическая | J9: Витамин | K9: Сборник рецептур
A10: продуктов | C10: порции | D10: (в гр ) | E10: (в гр ) | I10: ценность
D11: брутто | E11: нетто | F11: белки | G11: жиры | H11: угл-ды | I11: Ккал | J11: С
B12: ЗАВТРАК
A13: Каша "Дружба" молочная с маслом сливочным | C13: 180/5 | F13: 5.36 | G13: 9.85 | H13: 29.49 | I13: 229.05 | J13: 0.85 | K13: ТТК №7Д
B14: Крупа рисовая | D14: 13.50 | E14: 13.50
B15: Крупа пшенная | D15: 10.00 | E15: 10.00
B16: Молоко | D16: 90.00 | E16: 90.00
B17: Вода | D17: 68.00 | E17: 68.00
B18: Сахар | D18: 2.50 | E18: 2.50
B19: соль иодированная | D19: 0.50 | E19: 0.50
B20: Масло сливочное | D20: 5 | E20: 5
A21: Кофейный напиток с молоком | C21: 180 | F21: 2.85 | G21: 2.41 | H21: 14.35 | I21: 90.54 | J21: 1.17 | K21: №395 Дели2010
B22: Кофейный напиток | D22: 2.50 | E22: 2.50
B23: Сахар | D23: 6.00 | E23: 6.00
B24: Молоко | D24: 90.00 | E24: 90.00
B25: Вода | D25: 108.00 | E25: 108.00
A26: Бутерброд с маслом сливочным | C26: 30/5 | F26: 2.29 | G26: 4.50 | H26: 15.49 | I26: 111.60 | K26: №1 Дели2010
B27: Батон нарезной | D27: 30.00 | E27: 30.00
B28: Масло сливочное | D28: 5.00 | E28: 5.00
A29: Итого: | C29: 400 | F29: =F13+F21+F26 -> 10.50 | G29: =G13+G21+G26 -> 16.76 | H29: =H13+H21+H26 -> 59.34 | I29: =I13+I21+I26 -> 431.19 | J29: =J13+J21+J26 -> 2.02
B30: 2 - ой ЗАВТРАК
A31: Сок (или нектар) | C31: 200 | D31: 200.00 | E31: 200.00 | F31: 1.00 | H31: 20.20 | I31: 84.80 | J31: 4.00 | K31: №418 сб дошк 2016
A32: в ассортименте
A33: Итого: | C33: 200 | F33: =F31 -> 1.00 | G33: =G31 -> 0.00 | H33: =H31 -> 20.20 | I33: =I31 -> 84.80 | J33: =J31 -> 4.00
B34: ОБЕД
A35: Салат из моркови припущенной с яблоками | C35: 60 | F35: 0.63 | G35: 1.05 | H35: 5.18 | I35: 24.24 | J35: 2.63 | K35: ТТК от 25.01.2023
B36: морковь | D36: 61.31 | E36: 49.05
B37: масса припущенной моркови | E37: 45.00
B38: яблоки | D38: 17.10 | E38: 15.00
B39: сахар | D39: 0.60 | E39: 0.60
A40: Суп картофельный с вермишелью и с мясными фрикадельками | C40: 180/15 | F40: 4.28 | G40: 3.90 | H40: 12.60 | I40: 111.34 | J40: 6.18 | K40: №88 СБ дошк 2016
B41: говядина б/к (котлетное мясо) | D41: 17.85 | E41: 17.1
B42: или фарш говяжий | D42: 17.85 | E42: 17.1
B43: Лук репчатый | D43: 1.79 | E43: 1.5
B44: Яйцо | D44: 1.44 | E44: 1.2
B45: Вода для фарша | D45: 1.5 | E45: 1.5
B46: соль иодированная | D46: 0.15 | E46: 0.15
B47: Масса полуфабриката | E47: 21.5
B48: масса готовых фрикаделек | E48: 15
B49: Картофель | D49: 80.00 | E49: 60.00
B50: Вермишель | D50: 8.00 | E50: 8.00
B51: Морковь | D51: 10.00 | E51: 8.00
B52: Лук репчатый | D52: 9.60 | E52: 8.00
B53: Масло растительное | D53: 2.00 | E53: 2.00
B54: соль иодированная | D54: 0.70 | E54: 0.70
B55: Вода | D55: 140.00 | E55: 140.00
A56: Котлеты рубленые из говядины | C56: 70 | F56: 11.79 | G56: 13.09 | H56: 11.51 | I56: 211.06 | J56: 0.84 | K56: ТТК от 25.01.2023
B57: говядина б/к (котлетное мясо) | D57: 51.16 | E57: 49
B58: или фарш говяжий | D58: 51.45 | E58: 49
B59: Лук репчатый | D59: 14.64 | E59: 12.3
B60: Хлеб пшеничный | D60: 11 | E60: 11
B61: Вода | D61: 14.7 | E61: 14.7
B62: Сухари панировочные | D62: 4.00 | E62: 4.00
B63: соль иодированная | D63: 0.7 | E63: 0.7
B64: масса полуфабриката | E64: 75.3
B65: масло растительное | D65: 1 | E65: 1
A66: Капуста тушеная | C66: 130 | F66: 2.65 | G66: 4.78 | H66: 10.26 | I66: 100.10 | J66: 22.20 | K66: № 303 сб шк 2017
B67: капуста свежая | D67: 186.30 | E67: 149.00
B68: масло растительное | D68: 4.55 | E68: 4.55
B69: морковь | D69: 3.25 | E69: 2.60
B70: лук репчатый | D70: 6.19 | E70: 5.20
B71: томатная паста | D71: 3.12 | E71: 3.12
B72: мука пшеничная | D72: 1.56 | E72: 1.56
B73: сахар | D73: 1.00 | E73: 1.00
B74: соль йодированная | D74: 0.50 | E74: 0.50
A75: Напиток из сухофруктов | C75: 180 | F75: 0.60 | G75: 0.08 | H75: 28.81 | I75: 120 | J75: 0.65 | K75: №394 Сб дошк 2016
B76: сухофрукты | D76: 15.30 | E76: 15.00
B77: Сахар | D77: 6.00 | E77: 6.00
B78: вода | D78: 183.00 | E78: 183.00
A79: Хлеб ржаной | C79: 45 | D79: 45.00 | E79: 45.00 | F79: 2.97 | G79: 0.54 | H79: 17.82 | I79: 89.10 | K79: табл 6 стр 144,Дели + 2012
A80: Итого: | C80: 680 | F80: =F35+F40+F56+F66+F75+F79 -> 22.92 | G80: =G35+G40+G56+G66+G75+G79 -> 23.44 | H80: 86.19 | I80: 655.36 | J80: 32.50
B81: ПОЛДНИК
A82: Кисломолочный напиток | C82: 180/3 | F82: 5.31 | G82: 4.58 | H82: 7.32 | I82: 91.50 | J82: 1.28 | K82: №420 СБ дошк 2016
A83: (Кефир,ряженка,катык,напиток ацидофильный/йогурт) | B83: кисломолочный напиток | D83: 185.00 | E83: 180.00
B84: сахар | D84: 3.00 | E84: 3.00
A85: Кондитерское изделие | B85: вафли | C85: 20 | D85: 20.00 | E85: 20.00 | F85: 0.75 | G85: 6.10 | H85: 12.50 | I85: 108.50 | K85: табл 10 стр 202, Ддели +,2012
A86: Итого: | C86: 203 | F86: =F82+F85 -> 6.06 | G86: =G82+G85 -> 10.68 | H86: =H82+H85 -> 19.82 | I86: =I82+I85 -> 200.00 | J86: =J82+J85 -> 1.28
B87: УЖИН
A88: Пудинг рыбный | C88: 60/20 | F88: 11.97 | G88: 3.91 | H88: 5.87 | I88: 106.67 | J88: 0.16 | K88: №286 СБ дошк 2016
B89: рыба (минтай с/м БГ) | D89: 68.34 | E89: 50.25
B90: масса отварной рыбы | E90: 39.75
B91: Хлеб пшеничный | D91: 8.25 | E91: 8.25
B92: яйцо | D92: 6.3 | E92: 5.25
B93: молоко | D93: 12 | E93: 12
B94: масло сливочное | D94: 2.25 | E94: 2.25
B95: соль иодированная | D95: 0.4 | E95: 0.4
B96: Масло растительное | D96: 1 | E96: 1
B97: масса пудинга | E97: 60
B98: Соус молочный
B99: молоко | D99: 10 | E99: 10
B100: масло сливочное | D100: 1.1 | E100: 1.1
B101: Мука пшеничная | D101: 1.1 | E101: 1.1
B102: Вода | D102: 10 | E102: 10
B103: Сахар | D103: 0.2 | E103: 0.2
B104: соль иодированная | D104: 0.13 | E104: 0.13
B105: масса соуса | E105: 20
A106: Пюре Картофельное | C106: 140 | F106: 2.86 | G106: 4.48 | H106: 19.08 | I106: 128.10 | J106: 16.95 | K106: № 339 СБ дошк 2016
B107: Картофель | D107: 159.60 | E107: 119.70
B108: Молоко | D108: 22.12 | E108: 21.00
B109: Масло сливочное | D109: 5.00 | E109: 5.00
B110: соль иодированная | D110: 0.52 | E110: 0.52
A111: Чай с сахаром | C111: 180/6 | F111: 0.06 | G111: 0.02 | H111: 6.02 | I111: 24.10 | J111: 0.03 | K111: № 392 Дели 2010
B112: чай весовой | D112: 0.45 | E112: 0.45
B113: сахар | D113: 6.00 | E113: 6.00
B114: Вода | D114: 180.00 | E114: 180.00
A115: Хлеб пшеничный | C115: 30 | D115: 30.00 | E115: 30.00 | F115: 2.28 | G115: 0.24 | H115: 14.76 | I115: 70.50 | J115: 0.00 | K115: табл 6 стр 134,Дели + 2012
A116: Итого: | C116: 436 | F116: =F88+F106+F111+F115 -> 17.18 | G116: =G88+G106+G111+G115 -> 8.65 | H116: =H88+H106+H111+H115 -> 45.72 | I116: =I88+I106+I111+I115 -> 329.37 | J116: =J88+J106+J111+J115 -> 17.14
A117: ВСЕГО: | C117: =C29+C33+C80+C86+C116 -> 1919.00 | F117: =F29+F33+F80+F86+F116 -> 57.65 | G117: =G29+G33+G80+G86+G116 -> 59.52 | H117: =H29+H33+H80+H86+H116 -> 231.27 | I117: =I29+I33+I80+I86+I116 -> 1700.72 | J117: =J29+J33+J80+J86+J116 -> 56.94
A119: День 2- ой
A120: Наименование блюд и | C120: Масса | D120: Кол - во | E120: Кол - во | F120: Пищевые вещества | I120: Энергетическая | J120: Витамин | K120: Сборник
A121: продуктов | C121: порции | D121: (в гр ) | E121: (в гр ) | I121: ценность | K121: рецептур
D122: брутто | E122: нетто | F122: белки | G122: жиры | H122: угл-ды | I122: Ккал | J122: С
B123: ЗАВТРАК
A124: Каша полбяная молочная с маслом сливочным | C124: 180/3 | F124: 4.81 | G124: 7.85 | H124: 29.38 | I124: 207.32 | K124: ТТК №1Д
B125: Крупа полбяная | D125: 22.50 | E125: 22.50
B126: Молоко | D126: 90.00 | E126: 90.00
B127: вода | D127: 68.00 | E127: 68.00
B128: Сахар | D128: 2.50 | E128: 2.50
B129: соль иодированная | D129: 0.50 | E129: 0.50
B130: Масло сливочное | D130: 3.00 | E130: 3.00
A131: Какао с молоком | C131: 180 | F131: 3.67 | G131: 3.19 | H131: 15.82 | I131: 106.74 | J131: 1.43 | K131: №397 Дели2010
B132: Какао-порошок | D132: 2.00 | E132: 2.00
B133: Сахар | D133: 6.00 | E133: 6.00
B134: Молоко | D134: 110.00 | E134: 110.00
B135: Вода | D135: 80.00 | E135: 80.00
A136: Бутерброд с сыром, маслом сливочным | C136: 30/15/5 | F136: 6.24 | G136: 8.49 | H136: 15.49 | I136: 163.10 | J136: 0.11 | K136: №3 сб дошк2016
B137: Батон нарезной | D137: 30.00 | E137: 30.00
B138: Сыр | D138: 15.30 | E138: 15.00
B139: Масло сливочное | D139: 5.00 | E139: 5.00
A140: Итого: | C140: 413 | F140: =F124+F131+F136 -> 14.72 | G140: =G124+G131+G136 -> 19.53 | H140: =H124+H131+H136 -> 60.69 | I140: =I124+I131+I136 -> 477.16 | J140: =J124+J131+J136 -> 1.54
B141: 2 - ой ЗАВТРАК
A142: Фрукты свежие | C142: 100 | D142: 100 | E142: 100 | F142: 0.40 | G142: 0.40 | H142: 9.80 | I142: 47.00 | J142: 10.00 | K142: №386 СБ
A143: (яблоки,или апельсин, или банан,или мандарин ) | K143: дошк.2016
A144: Итого: | C144: 100 | F144: =F142 -> 0.40 | G144: =G142 -> 0.40 | H144: =H142 -> 9.80 | I144: =I142 -> 47.00 | J144: =J142 -> 10.00
B145: ОБЕД
A146: Салат из картофеля с солеными огурцами | C146: 60 | F146: 0.73 | G146: 4.71 | H146: 5.38 | I146: 66.84 | J146: 3.62 | K146: №23 сб дошк2016
B147: огурцы соленые | D147: 32.76 | E147: 18.00
B148: картофель | D148: 32.90 | E148: 24.00
B149: морковь | D149: 15.36 | E149: 12.00
B150: лук репчатый | D150: 3.60 | E150: 3.00
B151: масло растительное | D151: 3.00 | E151: 3.00
A152: Борщ со свежей капустой, картофелем на курином бульоне, со сметаной | C152: 180/7 | F152: 1.50 | G152: 4.77 | H152: 8.11 | I152: 87.64 | J152: 7.66 | K152: №63 сб дошк2016
B153: Капуста свежая | D153: 18.75 | E153: 15.00
B154: Картофель | D154: 19.95 | E154: 15.00
B155: Морковь | D155: 12.50 | E155: 10.00
B156: Лук репчатый | D156: 9.60 | E156: 8.00
B157: Свекла | D157: 38.40 | E157: 30.00
B158: Сахар | D158: 1.80 | E158: 1.80
B159: Масло растительное | D159: 3.60 | E159: 3.60
B160: соль иодированная | D160: 0.80 | E160: 0.80
B161: Бульон | D161: 144.00 | E161: 144.00
B162: Сметана | D162: 7.00 | E162: 7.00
A163: Фрикадельки куриные в молочном соусе | C163: 50/25 | F163: 7.49 | G163: 8.92 | H163: 6.45 | I163: 136.30 | J163: 0.59 | K163: № 325 сб дошк 2016
B164: цыплята - бройлеры с/м | D164: 57.00 | E164: 37.00
B165: или фарш куриный | E165: 37.00
B166: Хлеб пшеничный | D166: 9.00 | E166: 9.00
B167: Вода | D167: 12.00 | E167: 12.00
B168: соль иодированная | D168: 0.35 | E168: 0.35
B169: Масса полуфабриката | E169: 57.00
B170: Масло растительное | D170: 0.70 | E170: 0.70
B171: Соус молочный: | E171: 25.00
B172: Молоко | D172: 12.50 | E172: 12.50
B173: Масло сливочное | D173: 1.30 | E173: 1.30
B174: Мука пшеничная | D174: 1.3 | E174: 1.3
B175: Вода | D175: 12.50 | E175: 12.5
B176: Сахар | D176: 0.30 | E176: 0.3
B177: соль иодированная | D177: 0.3 | E177: 0.3
A178: Макаронные изделия отварные с маслом сливочным | C178: 130/3 | F178: 4.91 | G178: 3.13 | H178: 27.60 | I178: 158.16 | J178: 0.00 | K178: №219 Сб дошк 2016
B179: макаронные изделия | D179: 45.5 | E179: 45.50
B180: вода | D180: 275.0 | E180: 275.0
B181: соль иодированная | D181: 0.5 | E181: 0.5
B182: Масло сливочное | D182: 3.0 | E182: 3.0
A183: Кисель | C183: 180 | F183: 0.54 | G183: 0.09 | H183: 28.18 | I183: 115.24 | J183: 0.99 | K183: № 648, сб шк2004
B184: Кисель-концентрат | D184: 21.00 | E184: 21.00
B185: Сахар | D185: 6.00 | E185: 6.00
B186: вода | D186: 180.00 | E186: 180.00
A187: Хлеб пшеничный | C187: 25 | D187: 25.00 | E187: 25.00 | F187: 1.90 | G187: 0.20 | H187: 12.30 | I187: 58.75 | J187: 0.00 | K187: табл 6 стр 134,Дели + 2012
A188: Хлеб ржаной | C188: 45 | D188: 45.00 | E188: 45.00 | F188: 2.97 | G188: 0.54 | H188: 17.82 | I188: 89.10 | K188: табл 6 стр 144,Дели + 2012
A189: Итого: | C189: 705 | F189: =F146+F152+F163+F178+F183+F187+F188 -> 20.05 | G189: =G146+G152+G163+G178+G183+G187+G188 -> 22.35 | H189: 105.83 | I189: 712.03 | J189: 12.86
B190: ПОЛДНИК
A191: Кисломолочный напиток | C191: 180 | F191: 5.22 | G191: 4.50 | H191: 7.56 | I191: 91.80 | J191: 0.54 | K191: №420 СБ дошк 2016
A192: (Кефир,ряженка,катык,напиток ацидофильный/йогурт) | B192: кисломолочный напиток | D192: 185 | E192: 180
A193: Булочка дорожная | C193: 75 | F193: 5.09 | G193: 10.47 | H193: 31.61 | I193: 240.75 | K193: №453 сб дошк2016
B194: Мука пшеничная | D194: 45.50 | E194: 45.00
B195: мука пшеничная на подпыл | D195: 1.50 | E195: 1.50
B196: Сахар | D196: 9.00 | E196: 9.00
B197: Масло сливочное | D197: 9.75 | E197: 9.75
B198: соль иодированная | D198: 0.45 | E198: 0.45
B199: дрожжи сухие | D199: 0.30 | E199: 0.30
B200: вода | D200: 23.00 | E200: 23.00
B201: масса полуфабриката | E201: 85.50
B202: для крошки:
... 839 more rows

Sheet 1-3
A1: Утверждаю | H1: Согласовано
A2: Директор ООО"АБК - Пэймент" | H2: Руководитель дошкольной образовательной организации
A3: ___________Рахматуллин Р.Р.
C6: Примерное 10-дневное меню
C7: для организации питания детей в дошкольных учреждениях
C8: с 12 - часовым пребыванием от 1 до 3-х лет
A10: День 1 - ый
A11: Наименование блюд и | B11: Масса | C11: Пищевые вещества | F11: Энергетическая | G11: В1,мг | H11: С,мг | I11: A,мкг | J11: Е,мг | K11: Ca | L11: P | M11: Mg | N11: Fe | O11: Сборник
A12: продуктов | B12: порции | F12: ценность | O12: рецептур
C13: белки | D13: жиры | E13: угл-ды | F13: Ккал
A14: ЗАВТРАК
A15: Каша "Дружба" молочная с маслом сливочным | B15: 140/3 | C15: 4.22 | D15: 4.92 | E15: 23.38 | F15: 155.56 | G15: 0.07 | H15: 0.67 | I15: 22.34 | J15: 0.08 | K15: 92.40 | L15: 108.50 | M15: 26.05 | N15: 0.56 | O15: ТТК №7Д
A16: Кофейный напиток с молоком | B16: 180 | C16: 2.85 | D16: 2.41 | E16: 14.35 | F16: 90.54 | G16: 0.04 | H16: 1.17 | I16: 18.00 | J16: 0.00 | K16: 113.20 | L16: 81.00 | M16: 12.60 | N16: 0.12 | O16: №395 Дели2010
A17: Бутерброд с маслом сливочным | B17: 25/5 | C17: 1.92 | D17: 4.36 | E17: 12.92 | F17: 98.50 | G17: 0.03 | H17: 0.00 | I17: 20.00 | J17: 0.48 | K17: 5.95 | L17: 17.75 | M17: 3.25 | N17: 0.31 | O17: №1 Дели2010
A18: Итого: | B18: 353 | C18: =C15+C16+C17 -> 8.99 | D18: =D15+D16+D17 -> 11.69 | E18: 50.66 | F18: 344.60 | G18: 0.14 | H18: 1.84 | I18: 60.34 | J18: 0.56 | K18: 211.56 | L18: 207.25 | M18: 41.90 | N18: 0.99
A19: 2-ой ЗАВТРАК
A20: Сок | B20: 200 | C20: 1.00 | E20: 20.20 | F20: 84.80 | G20: 0.02 | H20: 4.00 | J20: 0.20 | K20: 14.00 | L20: 14.00 | M20: 8.00 | N20: 2.8 | O20: №418 сб дошк 2016
A21: в ассортименте в инд.упаковке
A22: Итого: | B22: 200 | C22: =C20 -> 1.00 | D22: =D20 -> 0.00 | E22: 20.20 | F22: 84.80 | G22: 0.02 | H22: 4.00 | I22: 0.00 | J22: 0.20 | K22: 14.00 | L22: 14.00 | M22: 8.00 | N22: 2.80
A23: ОБЕД
A24: Салат из моркови припущенной с яблоками | B24: 40 | C24: 0.42 | D24: 0.07 | E24: 3.45 | F24: 16.16 | G24: 1.75 | H24: 1.75 | I24: 0.00 | J24: 0.14 | K24: 9.60 | L24: 17.81 | M24: 12.15 | N24: 0.43 | O24: СБ дошк.2016 №39
A25: Суп вермишелевый с картофелем и с мясными фрикадельками | B25: 150/10 | C25: 3.95 | D25: 3.56 | E25: 10.51 | F25: 97.15 | G25: 0.07 | H25: 5.19 | I25: 5.82 | J25: 0.95 | K25: 22.88 | L25: 56.95 | M25: 18.39 | N25: 0.86 | O25: №88 СБ дошк 2016
A26: Котлеты рубленные из говядины | B26: 50 | C26: 8.42 | D26: 9.35 | E26: 8.22 | F26: 150.76 | G26: 0.04 | H26: 0.60 | I26: 3.53 | J26: 1.43 | K26: 7.54 | L26: 83.41 | M26: 13.97 | N26: 1.30 | O26: ТТК от 25.01.2023
A27: Капуста тушеная | B27: 120 | C27: 2.45 | D27: 4.42 | E27: 9.47 | F27: 92.40 | G27: 0.04 | H27: 20.50 | J27: 2.34 | K27: 70.50 | L27: 48.83 | M27: 25.02 | N27: 0.996 | O27: №354 сбдошк2016
A28: Напиток из сухофруктов | B28: 150 | C28: 0.50 | D28: 0.07 | E28: 24.01 | F28: 100 | G28: 0 | H28: 0.54 | I28: 0 | J28: 0 | K28: 24 | L28: 18 | M28: 13 | N28: 0.5235 | O28: №394 Сб дошк 2016
A29: Хлеб ржаной | B29: 35 | C29: 2.31 | D29: 0.42 | E29: 13.86 | F29: 69.30 | G29: 0.06 | J29: 0.49 | K29: 10.15 | L29: 52.50 | M29: 16.45 | N29: 1.365 | O29: табл 6 стр 144,Дели + 2012
A30: Итого: | B30: 555.00 | C30: =C24+C25+C26+C27+C28+C29 -> 18.06 | D30: =D24+D25+D26+D27+D28+D29 -> 17.88 | E30: 69.52 | F30: 525.37 | G30: 1.97 | H30: =H24+H25+H26+H27+H28 -> 28.58 | I30: 9.35 | J30: 5.73 | K30: 145.03 | L30: 277.07 | M30: 99.08 | N30: 5.47
A31: ПОЛДНИК
A32: Кисломолочный напиток | B32: 150/2 | C32: 4.35 | D32: 3.75 | E32: 8.00 | F32: 83.00 | G32: 0.06 | H32: 1.05 | I32: 30.00 | J32: 0.00 | K32: 180.06 | L32: 135.00 | M32: 21.00 | N32: 0.156 | O32: №420 Сб дошк 2016
A33: (Кефир,ряженка,катык, йогурт/напиток ацидофильный)
A34: Вафли | B34: 20 | C34: 0.75 | D34: 6.10 | E34: 12.50 | F34: 108.50 | G34: 0.01 | H34: 0.00 | I34: 1.00 | J34: 0.95 | K34: 1.50 | L34: 8.50 | M34: 1.00 | N34: 0.86 | O34: табл 6 стр 136,Ддели +,2012
A35: Итого: | B35: 172.00 | C35: =C32+C34 -> 5.10 | D35: =D32+D34 -> 9.85 | E35: 20.50 | F35: 191.50 | G35: 0.07 | H35: 1.05 | I35: 31.00 | J35: 0.95 | K35: 181.56 | L35: 143.50 | M35: 22.00 | N35: 1.01
A36: УЖИН
A37: Пудинг рыбный | B37: 45/15 | C37: 8.98 | D37: 2.93 | E37: 4.40 | F37: 80.00 | G37: 0.06 | H37: 0.12 | I37: 19.00 | K37: 27.20 | L37: 122.50 | M37: 16.60 | N37: 0.57 | O37: №286 СБ дошк 2016
A38: Пюре картофельное | B38: 120 | C38: 2.45 | D38: 3.84 | E38: 16.35 | F38: 109.80 | G38: 0.11 | H38: 14.53 | I38: 0.00 | J38: 0.15 | K38: 29.58 | L38: 69.28 | M38: 22.20 | N38: 0.81 | O38: № 339 СБ дошк 2016
A39: Чай с сахаром | B39: 150/5 | C39: 0.05 | D39: 0.02 | E39: 5.02 | F39: 20.08 | G39: 0.00 | H39: 0.02 | I39: 0.00 | J39: 0.00 | K39: 8.14 | L39: 2.10 | M39: 1.05 | N39: 0.19 | O39: №411 сб дошк 2016
A40: Хлеб пшеничный | B40: 25 | C40: 1.90 | D40: 0.20 | E40: 12.30 | F40: 58.75 | G40: 0.03 | J40: 0.28 | K40: 5.00 | L40: 16.25 | M40: 3.50 | N40: 0.28 | O40: табл 6 стр 134,Дели + 2012
A41: Итого: | B41: 360 | C41: =C37+C38+C39+C40 -> 13.38 | D41: =D37+D38+D39+D40 -> 6.99 | E41: 38.07 | F41: 268.63 | G41: 0.20 | H41: 14.67 | I41: 19.00 | J41: 0.42 | K41: 69.92 | L41: 210.13 | M41: 43.35 | N41: 1.84
A42: ВСЕГО: | B42: =B18+B22+B30+B35+B41 -> 1640.00 | C42: =C18+C22+C30+C35+C41 -> 46.53 | D42: =D18+D22+D30+D35+D41 -> 46.40 | E42: 198.94 | F42: 1414.90 | G42: 2.40 | H42: 50.14 | I42: 119.68 | J42: 7.86 | K42: 622.07 | L42: 851.95 | M42: 214.34 | N42: 12.11
A44: День 2- ой
A45: Наименование блюд и | B45: Масса | C45: Пищевые вещества | F45: Энергетическая | G45: В1,мг | H45: С,мг | I45: A,мкг | J45: Е,мг | K45: Ca | L45: P | M45: Mg | N45: Fe | O45: Сборник
A46: продуктов | B46: порции | F46: ценность | O46: рецептур
C47: белки | D47: жиры | E47: угл-ды | F47: Ккал
A48: ЗАВТРАК
A49: Каша полбяная молочная с маслом сливочным | B49: 140/3 | C49: 3.76 | D49: 6.13 | E49: 22.96 | F49: 162.00 | G49: 0.08 | H49: 0.00 | I49: 11.98 | J49: 0.66 | K49: 15.32 | L49: 95.12 | M49: 20.16 | N49: 1.59 | O49: ТТК №1Д
A50: Какао с молоком | B50: 180 | C50: 3.67 | D50: 3.19 | E50: 15.82 | F50: 106.74 | G50: 0.05 | H50: 1.43 | I50: 21.96 | K50: 137.00 | L50: 112.10 | M50: 19.21 | N50: 0.43 | O50: №397 Дели2010
A51: Бутерброд с сыром, маслом сливочным | B51: 25/10/5 | C51: 4.55 | D51: 7.02 | E51: 12.92 | F51: 132.83 | G51: 0.03 | H51: 0.07 | I51: 41.00 | J51: 0.52 | K51: 105.95 | L51: 77.75 | M51: 8.75 | N51: 0.38 | O51: №3 сб дошк2016
A52: Итого: | B52: 363 | C52: =C49+C50+C51 -> 11.98 | D52: =D49+D50+D51 -> 16.34 | E52: 51.70 | F52: 401.57 | G52: 0.16 | H52: 1.50 | I52: 74.94 | J52: 1.17 | K52: 258.27 | L52: 284.97 | M52: 48.12 | N52: 2.41
A53: 2 - ой ЗАВТРАК
A54: Фрукты свежие | B54: 100 | C54: 0.40 | D54: 0.40 | E54: 9.80 | F54: 47.00 | G54: 0.03 | H54: 10.00 | J54: 0.20 | K54: 16.00 | L54: 11.00 | M54: 9.00 | N54: 2.20 | O54: №386 СБ
A55: (яблоки,или апельсин, или банан,или мандарин ) | O55: дошк.2016
A56: Итого: | B56: 100 | C56: =C54 -> 0.40 | D56: =D54 -> 0.40 | E56: 9.80 | F56: 47.00 | G56: 0.03 | H56: 10.00 | I56: 0.00 | J56: 0.20 | K56: 16.00 | L56: 11.00 | M56: 9.00 | N56: 2.20
A57: ОБЕД
A58: Салат из картофеля с солеными огурцами | B58: 40 | C58: 0.49 | D58: 3.14 | E58: 3.58 | F58: 44.56 | G58: 0.02 | H58: 2.41 | J58: 0.96 | K58: 7.41 | L58: 16.84 | M58: 6.08 | N58: 0.27 | O58: №23 сб дошк2016
A59: Борщ со свежей капустой, картофелем на курином (костном) бульоне, со сметаной | B59: 150/7 | C59: 1.26 | D59: 4.00 | E59: 6.81 | F59: 73.58 | G59: 0.03 | H59: 6.43 | I59: 6.99 | J59: 1.46 | K59: 35.99 | L59: 37.03 | M59: 16.30 | N59: 0.75 | O59: №63,сбшк2016
A60: Фрикадельки куриные в молочном соусе | B60: 40/20 | C60: 5.99 | D60: 7.13 | E60: 5.16 | F60: 109.04 | G60: 0.02 | H60: 0.47 | I60: 25.64 | J60: 0.15 | K60: 31.79 | L60: 53.28 | M60: 8.11 | N60: 0.51 | O60: № 325 сб дошк 2016
A61: Макаронные изделия отварные с маслом сливочным | B61: 110/3 | C61: 4.17 | D61: 2.66 | E61: 23.45 | F61: 134.38 | G61: 0.04 | H61: 0.00 | I61: 11.98 | J61: 0.60 | K61: 8.93 | L61: 28.15 | M61: 6.32 | N61: 0.63 | O61: №219 Сб дошк.2016
A62: Кисель | B62: 150 | C62: 0.45 | D62: 0.08 | E62: 22.65 | F62: 92.70 | G62: 0.00 | H62: 0.83 | K62: 11.78 | L62: 12.23 | M62: 2.52 | N62: 0.28 | O62: №648 сбшк2004
A63: Хлеб ржаной | B63: 35 | C63: 2.31 | D63: 0.42 | E63: 13.86 | F63: 69.30 | G63: 0.06 | J63: 0.49 | K63: 10.15 | L63: 52.50 | M63: 16.45 | N63: 1.365 | O63: табл 6 стр 144,Дели + 2012
A64: Итого: | B64: 555 | C64: =SUM(C58:C63) -> 14.67 | D64: =SUM(D58:D63) -> 17.43 | E64: 75.51 | F64: 523.56 | G64: 0.18 | H64: 10.14 | I64: 44.61 | J64: 3.66 | K64: 106.04 | L64: 200.02 | M64: 55.78 | N64: 3.80
A65: ПОЛДНИК
A66: Кисломолочный напиток | B66: 150 | C66: 4.35 | D66: 3.75 | E66: 6.30 | F66: 76.50 | G66: 0.05 | H66: 0.45 | I66: 30.00 | J66: 0.00 | K66: 186.00 | L66: 138.00 | M66: 21.00 | N66: 0.15 | O66: №386 Сб дошк 2017
A67: (Кефир,ряженка,катык, йогурт/напиток ацидофильный)
A68: Булочка дорожная | B68: 50 | C68: 3.39 | D68: 6.98 | E68: 21.07 | F68: 160.50 | G68: 0.06 | J68: 2.55 | K68: 9.30 | L68: 32.10 | M68: 13.10 | N68: 0.60 | O68: №453 сб дошк2016
A69: Итого: | B69: =B66+B68 -> 200 | C69: =C66+C68 -> 7.74 | D69: 10.73 | E69: 27.37 | F69: 237 | G69: 0.1125 | H69: 0.45 | I69: 30 | J69: 2.55 | K69: 195.3 | L69: 170.1 | M69: 34.1 | N69: 0.75
A70: УЖИН
A71: Запеканка творожная с ягодным соусом | B71: 110/20 | C71: 8.11 | D71: 8.75 | E71: 21.93 | F71: 237.04 | G71: 0.07 | H71: 0.61 | I71: 100.10 | J71: 0.68 | K71: 164.12 | L71: 233.98 | M71: 27.34 | N71: 1.16 | O71: № 251 сб дошк 2016
A72: Чай с сахаром и лимоном | B72: 150/5/5 | C72: 0.10 | D72: 0.02 | E72: 5.17 | F72: 21.78 | G72: 0.00 | H72: 2.02 | I72: 0.00 | J72: 0.01 | K72: 10.14 | L72: 3.20 | M72: 1.65 | N72: 0.22 | O72: №393 Дели2010
A73: ИТОГО: | B73: 290 | C73: =SUM(C71:C72) -> 8.21 | D73: =SUM(D71:D72) -> 8.77 | E73: 27.10 | F73: 258.83 | G73: 0.07 | H73: 2.63 | I73: 100.10 | J73: 0.69 | K73: 174.26 | L73: 237.18 | M73: 28.99 | N73: 1.38
A74: ВСЕГО: | B74: =B52+B56+B64+B69+B73 -> 1508.00 | C74: =C52+C56+C64+C69+C73 -> 43.00 | D74: 53.66 | E74: 191.48 | F74: 1467.96 | G74: 0.55 | H74: 24.72 | I74: 249.65 | J74: 8.28 | K74: 749.87 | L74: 903.28 | M74: 175.99 | N74: 10.54
A76: День 3 - ий
A77: Наименование блюд и | B77: Масса | C77: Пищевые вещества | F77: Энергетическая | G77: В1,мг | H77: С,мг | I77: A,мкг | J77: Е,мг | K77: Ca | L77: P | M77: Mg | N77: Fe | O77: Сборник
A78: продуктов | B78: порции | F78: ценность | O78: рецептур
C79: белки | D79: жиры | E79: угл-ды | F79: Ккал
A80: ЗАВТРАК
A81: Каша кукурузная молочная с маслом сливочным | B81: 140/4 | C81: 5.32 | D81: 5.60 | E81: 35.51 | F81: 214.00 | G81: 0.06 | H81: 0.67 | I81: 26.36 | J81: 0.25 | K81: 96.21 | L81: 106.63 | M81: 22.13 | N81: 1.17 | O81: ТТК № 2Д
A82: Чай с молоком,сахаром | B82: 170/6 | C82: 1.29 | D82: 1.15 | E82: 1.79 | F82: 21.85 | G82: 0.03 | H82: 1.13 | I82: 8.50 | J82: 0.00 | K82: 107.26 | L82: 78.88 | M82: 13.09 | N82: 0.31 | O82: № 413 сб дошк 2016
A83: Бутерброд с маслом сливочным | B83: 25/5 | C83: 1.92 | D83: 4.36 | E83: 12.92 | F83: 98.50 | G83: 0.03 | H83: 0.00 | I83: 20.00 | J83: 0.48 | K83: 5.95 | L83: 17.75 | M83: 3.25 | N83: 0.31 | O83: №1 Дели2010
A84: Итого: | B84: 350 | C84: =C81+C82+C83 -> 8.52 | D84: =D81+D82+D83 -> 11.10 | E84: 50.22 | F84: 334.35 | G84: 0.12 | H84: 1.80 | I84: 54.86 | J84: 0.72 | K84: 209.42 | L84: 203.26 | M84: 38.47 | N84: 1.79
A85: 2 - ой ЗАВТРАК
A86: Сок | B86: 200 | C86: 1.00 | D86: 0.00 | E86: 20.20 | F86: 84.80 | G86: 0.02 | H86: 4.00 | I86: 0.00 | J86: 0.20 | K86: 14.00 | L86: 14.00 | M86: 8.00 | N86: 2.80 | O86: №418 сб дошк 2016
A87: в ассортименте в инд.упаковке
A88: Итого: | B88: 200 | C88: =C86 -> 1.00 | D88: =D86 -> 0.00 | E88: 20.20 | F88: 84.80 | G88: 0.02 | H88: 4.00 | I88: 0.00 | J88: 0.20 | K88: 14.00 | L88: 14.00 | M88: 8.00 | N88: 2.80
A89: ОБЕД
A90: Помидоры свежие порционно | B90: 40 | C90: 0.44 | D90: 0.08 | E90: 1.52 | F90: 8.80 | G90: 0.02 | H90: 7.00 | J90: 0.28 | K90: 5.60 | L90: 10.40 | M90: 8.00 | N90: 0.36 | O90: №71 сб шк 2017
A92: Суп картофельный с пшенной крупой на мясном бульоне | B92: 150 | C92: 1.18 | D92: 1.63 | E92: 7.27 | F92: 51.45 | G92: 0.05 | H92: 4.95 | I92: 0.00 | J92: 0.74 | K92: 16.02 | L92: 33.59 | M92: 13.67 | N92: 0.53 | O92: №86 сб дошк 2016
A93: Плов из отварной говядины | B93: 150 | C93: 15.30 | D93: 14.33 | E93: 24.38 | F93: 297.00 | G93: 0.04 | H93: 0.26 | J93: 2.90 | K93: 21.69 | L93: 155.68 | M93: 32.00 | N93: 2.15 | O93: №443 сбшк2004
A94: Напиток из вишни | B94: 150 | C94: 0.24 | D94: 0.06 | E94: 21.15 | F94: 87.45 | G94: 0.01 | H94: 2.03 | J94: 0.09 | K94: 16.62 | L94: 9.00 | M94: 8.89 | N94: 0.20 | O94: ТТК
A95: Хлеб ржаной | B95: 35 | C95: 2.31 | D95: 0.42 | E95: 13.86 | F95: 69.30 | G95: 0.06 | J95: 0.49 | K95: 10.15 | L95: 52.50 | M95: 16.45 | N95: 1.365 | O95: табл 6 стр 144,Дели + 2012
A96: Итого: | B96: 525 | C96: =C90+C92+C93+C94+C95 -> 19.47 | D96: =D90+D92+D93+D94+D95 -> 16.52 | E96: 68.18 | F96: 514.00 | G96: 0.18 | H96: 14.24 | I96: 0.00 | J96: 4.50 | K96: 70.08 | L96: 261.17 | M96: 79.01 | N96: 4.60
A97: ПОЛДНИК
A98: Молоко кипяченое | B98: 150 | C98: 4.35 | D98: 3.75 | E98: 7.20 | F98: 80.25 | G98: 0.06 | H98: 1.95 | I98: 30.00 | J98: 0.00 | K98: 180.00 | L98: 135.00 | M98: 21.00 | N98: 0.15 | O98: №419 Сб дошк 2016
A99: (молоко)
A100: Печенье | B100: 20 | C100: 1.50 | D100: 1.96 | E100: 14.88 | F100: 83.40 | G100: 0.02 | H100: 0.00 | I100: 2.00 | J100: 0.70 | K100: 5.80 | L100: 18.00 | M100: 4.00 | N100: 0.42 | O100: табл 6 стр 136,Ддели +,2012
A101: Итого: | B101: 170 | C101: =C98+C100 -> 5.85 | D101: =D98+D100 -> 5.71 | E101: 22.08 | F101: 163.65 | G101: 0.08 | H101: 1.95 | I101: 32.00 | J101: 0.70 | K101: 185.80 | L101: 153.00 | M101: 25.00 | N101: 0.57
A102: УЖИН
A103: Фрикадельки рыбные отварные | B103: 60 | C103: 10.06 | D103: 2.12 | E103: 0.85 | F103: 66.00 | G103: 0.06 | H103: 1.00 | I103: 30.06 | J103: 0.49 | K103: 75.28 | L103: 137.21 | M103: 36.00 | N103: 0.70 | O103: №279 сб дошк 2016
A104: Картофель тушеный с овощами в соусе | B104: 120 | C104: 2.61 | D104: 10.07 | E104: 18.12 | F104: 172.80 | G104: 0.12 | H104: 15.97 | I104: 20.16 | J104: 3.16 | K104: 26.04 | L104: 71.25 | M104: 25.17 | N104: 0.96 | O104: №144 сбшк 2016
A105: Чай с мармеладом | B105: 160/13,5 | C105: 0.07 | D105: 0.02 | E105: 10.74 | F105: 43.34 | G105: 0.00 | H105: 0.02 | I105: 0.00 | J105: 0.00 | K105: 9.06 | L105: 2.38 | M105: 1.39 | N105: 0.24 | O105: № 411 сб дошк 2016
A106: Хлеб пшеничный | B106: 25 | C106: 1.90 | D106: 0.20 | E106: 12.30 | F106: 58.75 | G106: 0.03 | J106: 0.28 | K106: 5.00 | L106: 16.25 | M106: 3.50 | N106: 0.28 | O106: табл 6 стр 134,Дели + 2012
A107: Итого: | B107: 378.5 | C107: =C103+C104+C105+C106 -> 14.64 | D107: =D103+D104+D105+D106 -> 12.41 | E107: 42.02 | F107: 340.89 | G107: 0.22 | H107: 16.99 | I107: 50.22 | J107: 3.93 | K107: 115.39 | L107: 227.08 | M107: 66.06 | N107: 2.17
A108: ВСЕГО: | B108: =B84+B88+B96+B101+B107 -> 1623.5 | C108: =C84+C88+C96+C101+C107 -> 49.4848 | D108: 45.73 | E108: 202.6952 | F108: 1437.685 | G108: 0.6203 | H108: 38.98 | I108: 137.08 | J108: 10.0424 | K108: 594.6833 | L108: 858.5062 | M108: 216.5367 | N108: 11.94025
A110: День 4 - ый
A111: Наименование блюд и | B111: Масса | C111: Пищевые вещества | F111: Энергетическая | G111: В1,мг | H111: С,мг | I111: A,мкг | J111: Е,мг | K111: Ca | L111: P | M111: Mg | N111: Fe | O111: Сборник
A112: продуктов | B112: порции | F112: ценность | O112: рецептур
C113: белки | D113: жиры | E113: угл-ды | F113: Ккал
A114: ЗАВТРАК
A115: Каша ячневая молочная с маслом сливочным | B115: 140/3 | C115: 3.05 | D115: 6.11 | E115: 19.47 | F115: 145.06 | G115: 0.06 | H115: 0.00 | I115: 11.98 | J115: 0.53 | K115: 25.75 | L115: 104.71 | M115: 14.92 | N115: 0.55 | O115: №229,сб дошк2016
A116: Кофейный напиток с молоком | B116: 180 | C116: 2.85 | D116: 2.41 | E116: 14.35 | F116: 90.54 | G116: 0.04 | H116: 1.17 | I116: 18.00 | J116: 0.00 | K116: 113.20 | L116: 81.00 | M116: 12.60 | N116: 0.12 | O116: №395 Дели2010
A117: Бутерброд с маслом сливочным, с повидлом | B117: 25/5/10 | C117: 1.98 | D117: 4.38 | E117: 14.82 | F117: 106.70 | G117: 0.03 | H117: 0.16 | I117: 20.00 | J117: 0.50 | K117: 7.15 | L117: 19.45 | M117: 3.95 | N117: 0.44
A118: Итого: | B118: 363 | C118: =C115+C116+C117 -> 7.87 | D118: =D115+D116+D117 -> 12.90 | E118: 48.64 | F118: 342.30 | G118: 0.13 | H118: 1.33 | I118: 49.98 | J118: 1.03 | K118: 146.10 | L118: 205.16 | M118: 31.47 | N118: 1.11
A119: 2 - ой ЗАВТРАК
A120: Фрукты свежие | B120: 150 | C120: 1.35 | D120: 0.30 | E120: 12.15 | F120: 64.50 | G120: 0.06 | H120: 90.00 | I120: 0.00 | J120: 0.30 | K120: 51.00 | L120: 34.50 | M120: 19.50 | N120: 0.45 | O120: №386 СБ
A121: (яблоки,или апельсин, или банан,или мандарин) | O121: дошк.2016
A122: Итого: | B122: 150 | C122: =C120 -> 1.35 | D122: =D120 -> 0.30 | E122: 12.15 | F122: 64.50 | G122: 0.06 | H122: 90.00 | I122: 0.00 | J122: 0.30 | K122: 51.00 | L122: 34.50 | M122: 19.50 | N122: 0.45
A123: ОБЕД
A124: Салат из свеклы отварной с яблоками | B124: 40 | C124: 0.44 | D124: 2.43 | E124: 4.48 | F124: 41.56 | G124: 0.01 | H124: 2.58 | I124: 0.00 | J124: 4.24 | K124: 11.71 | L124: 12.72 | M124: 6.73 | N124: 0.59 | O124: СБ дошк.2016 №39
A125: Суп картофельный с горохом на курином (костном) бульоне | B125: 150 | C125: 3.29 | D125: 3.16 | E125: 9.92 | F125: 88.95 | G125: 0.14 | H125: 3.50 | I125: 0.00 | J125: 1.46 | K125: 25.61 | L125: 52.86 | M125: 21.35 | N125: 1.23 | O125: СБ дошк.2016 №87
A126: Птица, тушеная в соусе с овощами | B126: 150 | C126: 13.34 | D126: 10.37 | E126: 12.90 | F126: 198.00 | G126: 0.14 | H126: 8.71 | I126: 37.50 | J126: 1.13 | K126: 59.04 | L126: 139.96 | M126: 33.46 | N126: 3.04 | O126: №319, 372 Сб дошк 2016
A127: Напиток из сухофруктов | B127: 150 | C127: 0.50 | D127: 0.07 | E127: 24.01 | F127: 99.60 | G127: 0.01 | H127: 0.54 | I127: 0.00 | J127: 0.38 | K127: 24.36 | L127: 17.58 | M127: 13.10 | N127: 0.52 | O127: №394 Сб дошк 2016
A128: Хлеб ржаной | B128: 35 | C128: 2.31 | D128: 0.42 | E128: 13.86 | F128: 69.30 | G128: 0.06 | J128: 0.49 | K128: 10.15 | L128: 52.50 | M128: 16.45 | N128: 1.365 | O128: табл 6 стр 144,Дели + 2012
A129: Итого: | B129: 525 | C129: =C124+C125+C126+C127+C128 -> 19.88 | D129: =D124+D125+D126+D127+D128 -> 16.45 | E129: 65.17 | F129: 497.41 | G129: 0.36 | H129: 15.33 | I129: 37.50 | J129: 7.70 | K129: 130.86 | L129: 275.62 | M129: 91.08 | N129: 6.75
A130: ПОЛДНИК
A131: Кисломолочный напиток | B131: 150 | C131: 4.50 | D131: 1.50 | E131: 6.00 | F131: 55.50 | G131: 0.06 | H131: 1.20 | I131: 30.00 | K131: 180.00 | L131: 147.00 | M131: 22.50 | N131: 0.15 | O131: №420 СБ дошк 2016
A132: (кефир,ряженка,катык,напиток ацидофильный)
A133: Булочка с сахаром | B133: 50 | C133: 3.80 | D133: 2.60 | E133: 24.46 | F133: 136.67 | G133: 0.07 | H133: 0.15 | I133: 4.58 | J133: 1.05 | K133: 10.08 | L133: 37.61 | M133: 6.73 | N133: 0.49 | O133: №442 СБ шк 2017
A134: Итого: | B134: 200 | C134: =C131+C133 -> 8.30 | D134: =D131+D133 -> 4.10 | E134: 30.46 | F134: 192.17 | G134: 0.13 | H134: 1.35 | I134: 34.58 | J134: 1.05 | K134: 190.08 | L134: 184.61 | M134: 29.23 | N134: 0.64
A135: УЖИН
A136: Омлет с сыром | B136: 130 | C136: 12.08 | D136: 21.52 | E136: 2.29 | F136: 251.03 | G136: 0.09 | H136: 0.22 | I136: 281.29 | J136: 0.65 | K136: 89.34 | L136: 195.67 | M136: 13.99 | N136: 2.29 | O136: №229,сб дошк2016
A137: Чай с сахаром | B137: 150/5 | C137: 0.05 | D137: 0.02 | E137: 5.02 | F137: 20.08 | G137: 0.00 | H137: 0.02 | I137: 0.00 | J137: 0.00 | K137: 8.14 | L137: 2.10 | M137: 1.05 | N137: 0.19 | O137: №392 Дели2010
A138: Хлеб пшеничный | B138: 25 | C138: 1.90 | D138: 0.20 | E138: 12.30 | F138: 58.75 | G138: 0.03 | J138: 0.28 | K138: 5.00 | L138: 16.25 | M138: 3.50 | N138: 0.28 | O138: табл 6 стр 134,Дели + 2012
A139: Итого: | B139: 310 | C139: =C136+C137+C138 -> 14.03 | D139: =D136+D137+D138 -> 21.73 | E139: 19.60 | F139: 329.87 | G139: 0.12 | H139: 0.24 | I139: 281.29 | J139: 0.93 | K139: 102.48 | L139: 214.02 | M139: 18.54 | N139: 2.75
A140: ВСЕГО: | B140: =B118+B122+B129+B134+B139 -> 1548 | C140: =C118+C122+C129+C134+C139 -> 51.43138658 | D140: 55.48190006 | E140: 176.0256733 | F140: 1426.246561 | G140: 0.7881218391 | H140: 108.25 | I140: 403.3524847 | J140: 11.00013413 | K140: 620.5188109 | L140: 913.9121507 | M140: 189.8180069 | N140: 11.70862845
A142: День 5 - ый
A143: Наименование блюд и | B143: Масса | C143: Пищевые вещества | F143: Энергетическая | G143: В1,мг | H143: С,мг | I143: A,мкг | J143: Е,мг | K143: Ca | L143: P | M143: Mg | N143: Fe | O143: Сборник
A144: продуктов | B144: порции | F144: ценность | O144: рецептур
C145: белки | D145: жиры | E145: угл-ды | F145: Ккал
A146: ЗАВТРАК
A147: Суп молочный с вермишелью | B147: 180 | C147: 3.94 | D147: 3.42 | E147: 12.93 | F147: 108.00 | G147: 0.06 | H147: 0.59 | I147: 23.76 | J147: 0.27 | K147: 117.36 | L147: 98.55 | M147: 19.21 | N147: 0.47 | O147: №100,сб дошк 2016
A148: Какао с молоком | B148: 150 | C148: 3.06 | D148: 2.66 | E148: 13.18 | F148: 88.95 | G148: 0.04 | H148: 1.19 | I148: 18.30 | J148: 0.00 | K148: 114.17 | L148: 93.42 | M148: 16.01 | N148: 0.36 | O148: №397 Дели2010
A149: Бутерброд с сыром, маслом сливочным | B149: 25/10/5 | C149: 4.55 | D149: 7.02 | E149: 12.92 | F149: 132.83 | G149: 0.03 | H149: 0.07 | I149: 41.00 | J149: 0.52 | K149: 105.95 | L149: 77.75 | M149: 8.75 | N149: 0.38 | O149: №3,сб дошк 2016
A150: Итого: | B150: 370 | C150: =C147+C148+C149 -> 11.54 | D150: =D147+D148+D149 -> 13.09 | E150: 39.03 | F150: 329.78 | G150: 0.14 | H150: 1.85 | I150: 83.06 | J150: 0.79 | K150: 337.48 | L150: 269.72 | M150: 43.96 | N150: 1.21
A151: 2 - ой ЗАВТРАК
A152: Сок | B152: 200 | C152: 1.00 | E152: 20.20 | F152: 84.80 | G152: 0.02 | H152: 4.00 | J152: 0.20 | K152: 14.00 | L152: 14.00 | M152: 8.00 | N152: 2.8 | O152: №418 сб дошк 2016
A153: в ассортименте в инд.упаковке
A154: Итого: | B154: =B152 -> 200 | C154: =C152 -> 1.00 | D154: =D152 -> 0.00 | E154: 20.20 | F154: 84.80 | G154: 0.02 | H154: 4.00 | I154: 0.00 | J154: 0.20 | K154: 14.00 | L154: 14.00 | M154: 8.00 | N154: 2.80
A155: ОБЕД
A156: Огурцы свежие порционно | B156: 40 | C156: 0.28 | D156: 0.04 | E156: 0.76 | F156: 4.80 | G156: 0.01 | H156: 1.96 | I156: 0.00 | J156: 0.04 | K156: 9.20 | L156: 16.80 | M156: 5.60 | N156: 0.24 | O156: №71 сб 2017
A157: Суп из овощей на мясном бульоне со сметаной | B157: 150/5 | C157: 1.08 | D157: 3.74 | E157: 5.67 | F157: 65.25 | G157: 0.05 | H157: 6.25 | I157: 5.00 | J157: 1.41 | K157: 25.31 | L157: 32.62 | M157: 12.90 | N157: 0.48 | O157: ТТК 535 23,12,2020
A158: Гуляш из отварной говядины | B158: 30/30 | C158: 8.02 | D158: 8.45 | E158: 1.96 | F158: 98.40 | G158: 0.01 | H158: 0.72 | K158: 14.16 | L158: 70.22 | M158: 12.16 | N158: 1.20 | O158: 293 сб дошк 2016
A159: Рис отварной рассыпчатый | B159: 110 | C159: 2.68 | D159: 3.94 | E159: 26.90 | F159: 153.78 | G159: 0.02 | J159: 0.21 | K159: 1.00 | L159: 44.69 | M159: 11.98 | N159: 0.39 | O159: №304 сб шк 2017
A160: Компот из яблок | B160: 150 | C160: 0.12 | D160: 0.12 | E160: 20.91 | F160: 85.95 | G160: 0.01 | H160: 0.68 | J160: 0.06 | K160: 10.64 | L160: 3.30 | M160: 3.86 | N160: 0.71 | O160: №390 СБ дошк 2016
A161: Хлеб ржаной | B161: 40 | C161: 2.64 | D161: 0.48 | E161: 15.84 | F161: 79.20 | G161: 0.07 | J161: 0.56 | K161: 11.60 | L161: 60.00 | M161: 18.80 | N161: 1.56 | O161: табл 6 стр 144,Дели + 2012
A162: Итого: | B162: 555 | C162: =C156+C157+C158+C159+C160+C161 -> 14.82 | D162: =D156+D157+D158+D159+D160+D161 -> 16.77 | E162: 72.04 | F162: 487.38 | G162: 0.16 | H162: 9.90 | I162: 5.00 | J162: 2.28 | K162: 71.91 | L162: 227.63 | M162: 65.30 | N162: 4.58
A163: ПОЛДНИК
A164: Молоко кипяченое | B164: 150 | C164: 4.35 | D164: 3.75 | E164: 7.20 | F164: 80.25 | G164: 0.06 | H164: 1.95 | I164: 30.00 | J164: 0.00 | K164: 180.00 | L164: 135.00 | M164: 21.00 | N164: 0.15 | O164: №419 Сб дошк 2016
A165: (молоко)
A166: Печенье | B166: 20 | C166: 1.50 | D166: 1.96 | E166: 14.88 | F166: 83.40 | G166: 0.02 | H166: 0.00 | I166: 2.00 | J166: 0.70 | K166: 5.80 | L166: 18.00 | M166: 4.00 | N166: 0.42 | O166: табл 6 стр 136,Ддели +,2012
A167: Итого: | B167: 170 | C167: =C164+C166 -> 5.85 | D167: =D164+D166 -> 5.71 | E167: 22.08 | F167: 163.65 | G167: 0.08 | H167: 1.95 | I167: 32.00 | J167: 0.70 | K167: 185.80 | L167: 153.00 | M167: 25.00 | N167: 0.57
A168: УЖИН
A169: Запеканка картофельная с мясом птицы со сметанным соусом | B169: 130/20 | C169: 15.70 | D169: 17.03 | E169: 19.49 | F169: 285.96 | G169: 0.24 | H169: 4.45 | I169: 6.76 | J169: 3.36 | K169: 43.76 | L169: 266.08 | M169: 99.62 | N169: 3.59 | O169: №229,сб дошк2016
A170: Чай с сахаром и лимоном | B170: 150/5/5 | C170: 0.10 | D170: 0.02 | E170: 5.17 | F170: 21.78 | G170: 0.00 | H170: 2.02 | I170: 0.00 | J170: 0.01 | K170: 10.14 | L170: 3.20 | M170: 1.65 | N170: 0.22 | O170: №393 Дели2010
A171: Хлеб пшеничный | B171: 20 | C171: 1.52 | D171: 0.16 | E171: 9.84 | F171: 47.00 | G171: 0.02 | J171: 0.22 | K171: 4.00 | L171: 13.00 | M171: 2.80 | N171: 0.22 | O171: табл 6 стр 134,Дели + 2012
A172: Итого: | B172: 330 | C172: =C169+C170+C171 -> 17.31 | D172: =D169+D170+D171 -> 17.21 | E172: 34.50 | F172: 354.75 | G172: 0.26 | H172: 6.47 | I172: 6.76 | J172: 3.59 | K172: 57.90 | L172: 282.28 | M172: 104.07 | N172: 4.03
A173: ВСЕГО: | B173: =B150+B154+B162+B167+B172 -> 1625 | C173: =C150+C154+C162+C167+C172 -> 50.52078571 | D173: 52.77754286 | E173: 187.8554252 | F173: 1420.361123 | G173: 0.6546761905 | H173: 24.17 | I173: 126.82 | J173: 7.5538 | K173: 667.0822401 | L173: 946.6241429 | M173: 246.3308571 | N173: 13.18160972
A175: День 6 - ый
A176: Наименование блюд и | B176: Масса | C176: Пищевые вещества | F176: Энергетическая | G176: В1,мг | H176: С,мг | I176: A,мкг | J176: Е,мг | K176: Ca | L176: P | M176: Mg | N176: Fe | O176: Сборник
A177: продуктов | B177: порции | F177: ценность | O177: рецептур
C178: белки | D178: жиры | E178: угл-ды | F178: Ккал
A179: ЗАВТРАК
A180: Каша пшенная молочная с маслом сливочным | B180: 140/4 | C180: 3.94 | D180: 7.57 | E180: 22.40 | F180: 173.40 | G180: 0.11 | H180: 0.00 | I180: 16.00 | J180: 0.20 | K180: 11.19 | L180: 80.97 | M180: 27.90 | N180: 0.93 | O180: ТТК №6Д
A181: Чай с молоком,сахаром | B181: 170/6 | C181: 1.29 | D181: 1.15 | E181: 1.79 | F181: 21.85 | G181: 0.03 | H181: 1.13 | I181: 8.50 | J181: 0.00 | K181: 107.26 | L181: 78.88 | M181: 13.09 | N181: 0.31 | O181: № 413 сб дошк 2016
A182: Бутерброд с маслом сливочным | B182: 25/5 | C182: 1.92 | D182: 4.36 | E182: 12.92 | F182: 98.50 | G182: 0.03 | H182: 0.00 | I182: 20.00 | J182: 0.48 | K182: 5.95 | L182: 17.75 | M182: 3.25 | N182: 0.31 | O182: №1 Дели2010
A183: Итого: | B183: 350 | C183: =C180+C181+C182 -> 7.14 | D183: =D180+D181+D182 -> 13.08 | E183: 37.11 | F183: 293.75 | G183: 0.17 | H183: 1.13 | I183: 44.50 | J183: 0.67 | K183: 124.40 | L183: 177.60 | M183: 44.24 | N183: 1.55
A184: 2 - ой ЗАВТРАК
A185: Фрукты свежие | B185: 100 | C185: 0.40 | D185: 0.40 | E185: 9.80 | F185: 47.00 | G185: 0.05 | H185: 10.00 | I185: 0.00 | J185: 0.48 | K185: 9.60 | L185: 33.60 | M185: 50.40 | N185: 0.72 | O185: №386 СБ
A186: (яблоки,или апельсин, или банан,или мандарин ) | O186: дошк.2016
A187: Итого: | B187: =B185 -> 100 | C187: =C185 -> 0.4 | D187: 0.4 | E187: 9.8 | F187: 47 | G187: 0.048 | H187: 10.00 | I187: 0 | J187: 0.48 | K187: 9.6 | L187: 33.6 | M187: 50.4 | N187: 0.72
A188: ОБЕД
A189: Помидоры свежие порционно | B189: 40 | C189: 0.44 | D189: 0.08 | E189: 1.52 | F189: 8.80 | G189: 0.02 | H189: 7.00 | J189: 0.28 | K189: 5.60 | L189: 10.40 | M189: 8.00 | N189: 0.36 | O189: №71 сб шк 2017
A191: Рассольник Домашний с куриными фрикадельками, со сметаной | B191: 150/10/6 | C191: 2.78 | D191: 5.28 | E191: 8.63 | F191: 99.02 | G191: 0.07 | H191: 8.00 | I191: 3.98 | J191: 1.45 | K191: 28.45 | L191: 49.91 | M191: 18.29 | N191: 0.76 | O191: №81 СБ дошк 2016
A192: Жаркое из отварной птицы по-домашнему | B192: 150 | C192: 13.89 | D192: 15.51 | E192: 14.21 | F192: 252.86 | G192: 0.10 | H192: 5.79 | J192: 2.66 | K192: 26.14 | L192: 176.36 | M192: 36.41 | N192: 3.31 | O192: ТТК 580/а от 24.06.2020
A193: Кисель | B193: 150 | C193: 0.45 | D193: 0.08 | E193: 22.65 | F193: 92.70 | G193: 0.00 | H193: 0.83 | K193: 11.78 | L193: 12.23 | M193: 2.52 | N193: 0.28 | O193: №648 сбшк2004
A194: Хлеб ржаной | B194: 35 | C194: 2.31 | D194: 0.42 | E194: 13.86 | F194: 69.30 | G194: 0.06 | J194: 0.49 | K194: 10.15 | L194: 52.50 | M194: 16.45 | N194: 1.365 | O194: табл 6 стр 144,Дели + 2012
A195: Итого: | B195: 541 | C195: =C189+C191+C192+C193+C194 -> 19.86 | D195: =D189+D191+D192+D193+D194 -> 21.36 | E195: 60.87 | F195: 522.68 | G195: 0.25 | H195: =H189+H191+H192+H193+H194 -> 21.62 | I195: =I189+I191+I192+I193+I194 -> 3.98 | J195: =J189+J191+J192+J193+J194 -> 4.87 | K195: 82.12 | L195: =L189+L191+L192+L193+L194 -> 301.39 | M195: =M189+M191+M192+M193+M194 -> 81.67 | N195: =N189+N191+N192+N193+N194 -> 6.07
A196: ПОЛДНИК
A197: Печенье | B197: 20 | C197: 1.50 | D197: 1.96 | E197: 14.88 | F197: 83.40 | G197: 0.02 | H197: 0.00 | I197: 2.00 | J197: 0.70 | K197: 5.80 | L197: 18.00 | M197: 4.00 | N197: 0.42 | O197: табл 6 стр 136,Ддели +,2012
A198: Кисломолочный напиток | B198: 150 | C198: 4.35 | D198: 3.75 | E198: 6.30 | F198: 76.00 | G198: 0.05 | H198: 0.45 | I198: 30.00 | J198: 0.00 | K198: 177.00 | L198: 144.00 | M198: 24.00 | N198: 0.15 | O198: №420 Сб дошк 2016
A199: (кефир,ряженка,катык, напиток ацидофильный)
A200: Итого: | B200: =B197+B198 -> 170.00 | C200: =C197+C198 -> 5.85 | D200: 5.71 | E200: 21.18 | F200: 159.40 | G200: 0.06 | H200: 0.45 | I200: 32.00 | J200: 0.70 | K200: 182.80 | L200: 162.00 | M200: 28.00 | N200: 0.57
A201: УЖИН
A202: Вареники ленивые со сметанным соусом | B202: 110/20 | C202: 17.63 | D202: 9.48 | E202: 18.16 | F202: 228.55 | G202: 0.06 | H202: 0.43 | I202: 64.73 | J202: 0.43 | K202: 153.41 | L202: 217.73 | M202: 23.40 | N202: 0.72 | O202: № 217,330 сб шк 2017
A203: Напиток из шиповника | B203: 150/5 | C203: 0.51 | D203: 0.21 | E203: 15.57 | F203: 66.15 | G203: 0.01 | H203: 75.00 | I203: 0.00 | J203: 0.57 | K203: 16.01 | L203: 2.58 | M203: 2.58 | N203: 0.48 | O203: №399 сб дошк 2016
A204: Итого: | B204: 285 | C204: =C202+C203 -> 18.14 | D204: =D202+D203 -> 9.69 | E204: 33.73 | F204: 294.70 | G204: 0.07 | H204: 75.43 | I204: 64.73 | J204: 1.00 | K204: 169.42 | L204: 220.31 | M204: 25.98 | N204: 1.20
A205: ВСЕГО: | B205: =B183+B187+B195+B200+B204 -> 1,446.00 | C205: =C183+C187+C195+C200+C204 -> 51.39 | D205: =D183+D187+D195+D200+D204 -> 50.24 | E205: =E183+E187+E195+E200+E204 -> 162.69 | F205: =F183+F187+F195+F200+F204 -> 1,317.53 | G205: =G183+G187+G195+G200+G204 -> 0.60 | H205: =H183+H187+H195+H200+H204 -> 108.63 | I205: =I183+I187+I195+I200+I204 -> 145.21 | J205: =J183+J187+J195+J200+J204 -> 7.73 | K205: =K183+K187+K195+K200+K204 -> 568.34 | L205: =L183+L187+L195+L200+L204 -> 894.90 | M205: =M183+M187+M195+M200+M204 -> 230.29 | N205: =N183+N187+N195+N200+N204 -> 10.10
A207: День 7 - ой
A208: Наименование блюд и | B208: Масса | C208: Пищевые вещества | F208: Энергетическая | G208: В1,мг | H208: С,мг | I208: A,мкг | J208: Е,мг | K208: Ca | L208: P | M208: Mg | N208: Fe | O208: Сборник
A209: продуктов | B209: порции | F209: ценность | O209: рецептур
C210: белки | D210: жиры | E210: угл-ды | F210: Ккал
A211: ЗАВТРАК
... 124 more rows

Sheet 3-7
A1: Утверждаю | H1: Согласовано
A2: Директор ООО"АБК - Пэймент" | H2: Руководитель дошкольной образовательной организации
A3: ___________Рахматуллин Р.Р.
C6: Примерное 10-дневное меню
C7: для организации питания детей в дошкольных учреждениях
C8: с 12 - часовым пребыванием от 3-х лет до 7 лет
A10: День 1 - ый
A11: Наименование блюд и | B11: Масса | C11: Пищевые вещества | F11: Энергетическая | G11: В1,мг | H11: С,мг | I11: A,мкг | J11: Е,мг | K11: Ca | L11: P | M11: Mg | N11: Fe | O11: Сборник
A12: продуктов | B12: порции | F12: ценность | O12: рецептур
C13: белки | D13: жиры | E13: угл-ды | F13: Ккал
A14: ЗАВТРАК
A15: Каша "Дружба" молочная с маслом сливочным | B15: 180/5 | C15: 5.36 | D15: 9.85 | E15: 29.49 | F15: 229.05 | G15: 0.09 | H15: 0.85 | I15: 48.28 | J15: 0.16 | K15: 117.50 | L15: 138.06 | M15: 32.79 | N15: 0.71 | O15: ТТК №7Д
A16: Кофейный напиток с молоком | B16: 180.00 | C16: 2.85 | D16: 2.41 | E16: 14.35 | F16: 90.54 | G16: 0.04 | H16: 1.17 | I16: 18.00 | J16: 0.00 | K16: 113.20 | L16: 81.00 | M16: 12.60 | N16: 0.12 | O16: №395 Дели2010
A17: Бутерброд с маслом сливочным | B17: 30/5 | C17: 2.29 | D17: 4.50 | E17: 15.49 | F17: 111.60 | G17: 0.03 | H17: 0.00 | I17: 20.00 | J17: 0.56 | K17: 6.90 | L17: 21.00 | M17: 3.90 | N17: 0.37 | O17: №1 Дели2010
A18: Итого: | B18: 400.00 | C18: =C15+C16+C17 -> 10.50 | D18: =D15+D16+D17 -> 16.76 | E18: 59.34 | F18: 431.19 | G18: 0.16 | H18: 2.02 | I18: 86.28 | J18: 0.72 | K18: 237.60 | L18: 240.06 | M18: 49.29 | N18: 1.20
A19: 2-ой ЗАВТРАК
A20: Сок | B20: 200.00 | C20: 1.00 | E20: 20.20 | F20: 84.80 | G20: 0.02 | H20: 4.00 | J20: 0.20 | K20: 14.00 | L20: 14.00 | M20: 8.00 | N20: 2.80 | O20: №418 сб дошк 2016
A21: в ассортименте в инд.упаковке
A22: Итого: | B22: 200.00 | C22: =C20 -> 1.00 | D22: =D20 -> 0.00 | E22: 20.20 | F22: 84.80 | G22: 0.02 | H22: 4.00 | I22: 0.00 | J22: 0.20 | K22: 14.00 | L22: 14.00 | M22: 8.00 | N22: 2.80
A23: ОБЕД
A24: Салат из моркови припущенной с яблоками | B24: 60.00 | C24: 0.63 | D24: 1.05 | E24: 5.18 | F24: 24.24 | G24: 2.63 | H24: 2.63 | I24: 0.00 | J24: 0.21 | K24: 14.40 | L24: 26.72 | M24: 18.23 | N24: 0.64 | O24: СБ дошк.2016 №39
A25: Суп картофельный с вермишелью и с мясными фрикадельками | B25: 180/15 | C25: 4.28 | D25: 3.90 | E25: 12.60 | F25: 111.34 | G25: 0.09 | H25: 6.18 | I25: 5.82 | J25: 1.12 | K25: 26.38 | L25: 65.05 | M25: 21.67 | N25: 1.00 | O25: №88 СБ дошк 2016
A26: Котлеты рубленные из говядины | B26: 70.00 | C26: 11.79 | D26: 13.09 | E26: 11.51 | F26: 211.06 | G26: 0.06 | H26: 0.84 | I26: 4.94 | J26: 2.01 | K26: 10.56 | L26: 116.77 | M26: 19.56 | N26: 1.81 | O26: ТТК от 25.01.2023
A27: Капуста тушеная | B27: 130.00 | C27: 2.65 | D27: 4.78 | E27: 10.26 | F27: 100.10 | G27: 0.04 | H27: 22.20 | I27: 0.00 | J27: 2.54 | K27: 76.38 | L27: 52.90 | M27: 27.11 | N27: 1.08 | O27: №354 сбдошк2016
A28: Напиток из сухофруктов | B28: 180.00 | C28: 0.60 | D28: 0.08 | E28: 28.81 | F28: 119.52 | G28: 0.01 | H28: 0.65 | I28: 0.00 | J28: 0.46 | K28: 29.23 | L28: 21.10 | M28: 15.71 | N28: 0.63 | O28: №394 Сб дошк 2016
A29: Хлеб ржаной | B29: 45.00 | C29: 2.97 | D29: 0.54 | E29: 17.82 | F29: 89.10 | G29: 0.08 | H29: 0.00 | I29: 0.00 | J29: 0.63 | K29: 13.05 | L29: 67.50 | M29: 21.15 | N29: 1.76 | O29: табл 6 стр 144,Дели + 2012
A30: Итого: | B30: 680.00 | C30: =C24+C25+C26+C27+C28+C29 -> 22.92 | D30: =D24+D25+D26+D27+D28+D29 -> 23.44 | E30: 86.19 | F30: 655.06 | G30: 2.90 | H30: 32.50 | I30: 10.76 | J30: 6.95 | K30: 170.00 | L30: 350.03 | M30: 123.42 | N30: 6.91
A31: ПОЛДНИК
A32: Кисломолочный напиток | B32: 180/3 | C32: 5.31 | D32: 4.58 | E32: 7.32 | F32: 91.50 | G32: 0.07 | H32: 1.28 | I32: 36.60 | J32: 0.00 | K32: 219.60 | L32: 164.70 | M32: 25.62 | N32: 0.18 | O32: №420 Сб дошк 2016
A33: (Кефир,ряженка,катык, йогурт/напиток ацидофильный)
A34: Вафли | B34: 20.00 | C34: 0.75 | D34: 6.10 | E34: 12.50 | F34: 108.50 | G34: 0.01 | H34: 0.00 | I34: 1.00 | J34: 0.95 | K34: 1.50 | L34: 8.50 | M34: 1.00 | N34: 0.86 | O34: табл 6 стр 136,Ддели +,2012
A35: Итого: | B35: 203.00 | C35: =C32+C34 -> 6.06 | D35: =D32+D34 -> 10.68 | E35: 19.82 | F35: 200.00 | G35: 0.08 | H35: 1.28 | I35: 37.60 | J35: 0.95 | K35: 221.10 | L35: 173.20 | M35: 26.62 | N35: 1.04
A36: УЖИН
A37: Пудинг рыбный | B37: 60/20 | C37: 11.97 | D37: 3.91 | E37: 5.87 | F37: 106.67 | G37: 0.08 | H37: 0.16 | I37: 25.33 | J37: 0.00 | K37: 36.27 | L37: 163.33 | M37: 22.13 | N37: 0.76 | O37: №286 СБ дошк 2016
A38: Пюре картофельное | B38: 140.00 | C38: 2.86 | D38: 4.48 | E38: 19.08 | F38: 128.10 | G38: 0.13 | H38: 16.95 | I38: 0.00 | J38: 0.17 | K38: 34.51 | L38: 80.82 | M38: 25.90 | N38: 0.94 | O38: № 339 СБ дошк 2016
A39: Чай с сахаром | B39: 180/6 | C39: 0.06 | D39: 0.02 | E39: 6.02 | F39: 24.10 | G39: 0.00 | H39: 0.03 | I39: 0.00 | J39: 0.00 | K39: 9.77 | L39: 2.52 | M39: 1.26 | N39: 0.23 | O39: №411 сб дошк 2016
A40: Хлеб пшеничный | B40: 30.00 | C40: 2.28 | D40: 0.24 | E40: 14.76 | F40: 70.50 | G40: 0.03 | H40: 0.00 | I40: 0.00 | J40: 0.33 | K40: 6.00 | L40: 19.50 | M40: 4.20 | N40: 0.33 | O40: табл 6 стр 134,Дели + 2012
A41: Итого: | B41: 436.00 | C41: =SUM(C37:C40) -> 17.18 | D41: =SUM(D37:D40) -> 8.65 | E41: 45.72 | F41: 329.37 | G41: 0.24 | H41: 17.14 | I41: 25.33 | J41: 0.50 | K41: 86.54 | L41: 266.18 | M41: 53.49 | N41: 2.26
A42: ВСЕГО: | B42: =B18+B22+B30+B35+B41 -> 1919.00 | C42: 57.65 | D42: 59.52 | E42: 231.27 | F42: 1700.42 | G42: 3.41 | H42: 56.93 | I42: 159.96 | J42: 9.32 | K42: 729.24 | L42: 1043.47 | M42: 260.83 | N42: 14.22
A45: День 2- ой
A46: Наименование блюд и | B46: Масса | C46: Пищевые вещества | F46: Энергетическая | G46: В1,мг | H46: С,мг | I46: A,мкг | J46: Е,мг | K46: Ca | L46: P | M46: Mg | N46: Fe | O46: Сборник
A47: продуктов | B47: порции | F47: ценность | O47: рецептур
C48: белки | D48: жиры | E48: угл-ды | F48: Ккал
A49: ЗАВТРАК
A50: Каша полбяная молочная с маслом сливочным | B50: 180/3 | C50: 4.81 | D50: 7.85 | E50: 29.38 | F50: 207.32 | G50: 0.10 | H50: 0.00 | I50: 15.33 | J50: 0.84 | K50: 19.61 | L50: 121.72 | M50: 25.80 | N50: 2.04 | O50: ТТК №1Д
A51: Какао с молоком | B51: 180.00 | C51: 3.67 | D51: 3.19 | E51: 15.82 | F51: 106.74 | G51: 0.05 | H51: 1.43 | I51: 21.96 | K51: 137.00 | L51: 112.10 | M51: 19.21 | N51: 0.43 | O51: №397 Дели2010
A52: Бутерброд с сыром, маслом сливочным | B52: 30/15/5 | C52: 6.24 | D52: 8.49 | E52: 15.49 | F52: 163.10 | G52: 0.04 | H52: 0.11 | I52: 51.50 | J52: 0.62 | K52: 156.90 | L52: 111.00 | M52: 12.15 | N52: 0.48 | O52: №3 сб дошк2016
A53: Итого: | B53: 413.00 | C53: =C50+C51+C52 -> 14.72 | D53: =D50+D51+D52 -> 19.53 | E53: 60.69 | F53: 477.16 | G53: 0.19 | H53: 1.54 | I53: 88.79 | J53: 1.46 | K53: 313.50 | L53: 344.83 | M53: 57.16 | N53: 2.95
A54: 2 - ой ЗАВТРАК
A55: Фрукты свежие | B55: 100.00 | C55: 0.40 | D55: 0.40 | E55: 9.80 | F55: 47.00 | G55: 0.03 | H55: 10.00 | J55: 0.20 | K55: 16.00 | L55: 11.00 | M55: 9.00 | N55: 2.20 | O55: №386 СБ
A56: (яблоки,или апельсин, или банан,или мандарин ) | O56: дошк.2016
A57: Итого: | B57: 100.00 | C57: =C55 -> 0.40 | D57: =D55 -> 0.40 | E57: 9.80 | F57: 47.00 | G57: 0.03 | H57: 10.00 | I57: 0.00 | J57: 0.20 | K57: 16.00 | L57: 11.00 | M57: 9.00 | N57: 2.20
A58: ОБЕД
A59: Салат из картофеля с солеными огурцами | B59: 60.00 | C59: 0.73 | D59: 4.71 | E59: 5.38 | F59: 66.84 | G59: 0.03 | H59: 3.62 | I59: 0.00 | J59: 1.45 | K59: 11.11 | L59: 25.26 | M59: 9.13 | N59: 0.41 | O59: №23 сб дошк2016
A60: Борщ со свежей капустой, картофелем на курином (костном) бульоне, со сметаной | B60: 180/7 | C60: 1.50 | D60: 4.77 | E60: 8.11 | F60: 87.64 | G60: 0.04 | H60: 7.66 | I60: 8.33 | J60: 1.74 | K60: 42.87 | L60: 44.10 | M60: 19.42 | N60: 0.89 | O60: №63,сбшк2016
A61: Фрикадельки куриные в молочном соусе | B61: 50/25 | C61: 7.49 | D61: 8.92 | E61: 6.45 | F61: 136.30 | G61: 0.03 | H61: 0.59 | I61: 32.05 | J61: 0.19 | K61: 39.74 | L61: 66.60 | M61: 10.13 | N61: 0.63 | O61: № 325 сб дошк 2016
A62: Макаронные изделия отварные с маслом сливочным | B62: 130/3 | C62: 4.91 | D62: 3.13 | E62: 27.60 | F62: 158.16 | G62: 0.05 | H62: 0.00 | I62: 14.10 | J62: 0.71 | K62: 10.51 | L62: 33.14 | M62: 7.44 | N62: 0.74 | O62: №219 Сб дошк.2016
A63: Кисель | B63: 180.00 | C63: 0.54 | D63: 0.09 | E63: 28.18 | F63: 115.24 | G63: 0.00 | H63: 0.99 | I63: 0.00 | J63: 0.00 | K63: 13.95 | L63: 14.67 | M63: 3.02 | N63: 0.32 | O63: №648 сбшк2004
A64: Хлеб пшеничный | B64: 25.00 | C64: 1.90 | D64: 0.20 | E64: 12.30 | F64: 58.75 | G64: 0.03 | J64: 0.28 | K64: 5.00 | L64: 16.25 | M64: 3.50 | N64: 0.28 | O64: табл 6 стр 134,Дели + 2012
A65: Хлеб ржаной | B65: 45.00 | C65: 2.97 | D65: 0.54 | E65: 17.82 | F65: 89.10 | G65: 0.08 | H65: 0.00 | I65: 0.00 | J65: 0.63 | K65: 13.05 | L65: 67.50 | M65: 21.15 | N65: 1.76 | O65: табл 6 стр 144,Дели + 2012
A66: Итого: | B66: 705.00 | C66: =SUM(C59:C65) -> 20.05 | D66: =SUM(D59:D65) -> 22.35 | E66: 105.83 | F66: 712.03 | G66: 0.26 | H66: 12.86 | I66: 54.47 | J66: 4.98 | K66: 136.23 | L66: 267.52 | M66: 73.79 | N66: 5.02
A67: ПОЛДНИК
A68: Кисломолочный напиток | B68: 180 | C68: 5.22 | D68: 4.50 | E68: 7.56 | F68: 91.80 | G68: 0.06 | H68: 0.54 | I68: 36.00 | J68: 0.00 | K68: 223.20 | L68: 165.60 | M68: 25.20 | N68: 0.18 | O68: №386 Сб дошк 2017
A69: (Кефир,ряженка,катык, йогурт/напиток ацидофильный)
A70: Булочка дорожная | B70: 75.00 | C70: 5.09 | D70: 10.47 | E70: 31.61 | F70: 240.75 | G70: 0.09 | H70: 0.00 | I70: 0.00 | J70: 3.83 | K70: 13.95 | L70: 48.15 | M70: 19.65 | N70: 0.90 | O70: №453 сб дошк2016
A71: Итого: | B71: 255.00 | C71: =C68+C70 -> 10.31 | D71: =D68+D70 -> 14.97 | E71: 39.17 | F71: 332.55 | G71: 0.15 | H71: 0.54 | I71: 36.00 | J71: 3.83 | K71: 237.15 | L71: 213.75 | M71: 44.85 | N71: 1.08
A72: УЖИН
A73: Запеканка творожная с ягодным соусом | B73: 130/20 | C73: 9.36 | D73: 10.09 | E73: 25.31 | F73: 273.51 | G73: 0.08 | H73: 0.70 | I73: 115.50 | J73: 0.78 | K73: 189.37 | L73: 269.98 | M73: 31.54 | N73: 1.34 | O73: № 251 сб дошк 2016
A74: Чай с сахаром и лимоном | B74: 180/6/7 | C74: 0.13 | D74: 0.03 | E74: 6.23 | F74: 26.48 | G74: 0.00 | H74: 2.83 | I74: 0.00 | J74: 0.01 | K74: 12.57 | L74: 4.06 | M74: 2.10 | N74: 0.27 | O74: №393 Дели2010
A75: ИТОГО: | B75: 343.00 | C75: =SUM(C73:C74) -> 9.48 | D75: =SUM(D73:D74) -> 10.12 | E75: 31.54 | F75: 299.99 | G75: 0.09 | H75: 3.53 | I75: 115.50 | J75: 0.80 | K75: 201.94 | L75: 274.04 | M75: 33.64 | N75: 1.61
A76: ВСЕГО: | B76: =B53+B57+B66+B71+B75 -> 1816.00 | C76: =C53+C57+C66+C71+C75 -> 54.95 | D76: =D53+D57+D66+D71+D75 -> 67.36 | E76: 247.03 | F76: 1868.73 | G76: 0.71 | H76: 28.47 | I76: 294.76 | J76: 11.27 | K76: 904.82 | L76: 1111.14 | M76: 218.44 | N76: 12.86
A78: День 3 - ий
A79: Наименование блюд и | B79: Масса | C79: Пищевые вещества | F79: Энергетическая | G79: В1,мг | H79: С,мг | I79: A,мкг | J79: Е,мг | K79: Ca | L79: P | M79: Mg | N79: Fe | O79: Сборник
A80: продуктов | B80: порции | F80: ценность | O80: рецептур
C81: белки | D81: жиры | E81: угл-ды | F81: Ккал
A82: ЗАВТРАК
A83: Каша кукурузная молочная с маслом сливочным | B83: 180/5 | C83: 6.84 | D83: 7.10 | E83: 45.66 | F83: 274.20 | G83: 0.08 | H83: 0.86 | I83: 33.32 | J83: 0.31 | K83: 123.66 | L83: 137.05 | M83: 28.45 | N83: 1.50 | O83: ТТК № 2Д
A84: Чай с молоком,сахаром | B84: 180/6 | C84: 2.67 | D84: 2.27 | E84: 10.34 | F84: 72.70 | G84: 0.04 | H84: 1.20 | I84: 18.00 | J84: 0.00 | K84: 117.77 | L84: 83.52 | M84: 13.86 | N84: 0.32 | O84: № 413 сб дошк 2016
A85: Бутерброд с маслом сливочным | B85: 30/5 | C85: 2.29 | D85: 4.50 | E85: 15.49 | F85: 111.60 | G85: 0.03 | H85: 0.00 | I85: 20.00 | J85: 0.56 | K85: 6.90 | L85: 21.00 | M85: 3.90 | N85: 0.37 | O85: №1 Дели2010
A86: Итого: | B86: 406.00 | C86: =C83+C84+C85 -> 11.80 | D86: =D83+D84+D85 -> 13.86 | E86: 71.49 | F86: 458.50 | G86: 0.15 | H86: 2.06 | I86: 71.32 | J86: 0.87 | K86: 248.33 | L86: 241.57 | M86: 46.21 | N86: 2.19
A87: 2 - ой ЗАВТРАК
A88: Сок | B88: 200.00 | C88: 1.00 | D88: 0.00 | E88: 20.20 | F88: 84.80 | G88: 0.02 | H88: 4.00 | I88: 0.00 | J88: 0.20 | K88: 14.00 | L88: 14.00 | M88: 8.00 | N88: 2.80 | O88: №418 сб дошк 2016
A89: в ассортименте
A90: Итого: | B90: 200.00 | C90: =C88 -> 1.00 | D90: =D88 -> 0.00 | E90: 20.20 | F90: 84.80 | G90: 0.02 | H90: 4.00 | I90: 0.00 | J90: 0.20 | K90: 14.00 | L90: 14.00 | M90: 8.00 | N90: 2.80
A91: ОБЕД
A92: Помидоры свежие порционно | B92: 60.00 | C92: 0.66 | D92: 0.12 | E92: 2.28 | F92: 13.20 | G92: 0.04 | H92: 10.50 | J92: 0.42 | K92: 8.40 | L92: 15.60 | M92: 12.00 | N92: 0.54 | O92: №71 сб 2017
A94: Суп картофельный с пшенной крупой на мясном бульоне | B94: 180.00 | C94: 1.42 | D94: 1.95 | E94: 8.72 | F94: 61.74 | G94: 0.06 | H94: 5.94 | I94: 0.00 | J94: 0.88 | K94: 19.22 | L94: 40.30 | M94: 16.40 | N94: 0.63 | O94: №86 сб дошк 2016
A95: Плов из отварной говядины | B95: 200.00 | C95: 20.40 | D95: 19.11 | E95: 32.51 | F95: 396.00 | G95: 0.05 | H95: 0.35 | I95: 0.00 | J95: 3.87 | K95: 28.92 | L95: 207.57 | M95: 42.67 | N95: 2.87 | O95: №443 сбшк2004
A96: Напиток из вишни | B96: 180.00 | C96: 0.29 | D96: 0.07 | E96: 25.38 | F96: 104.94 | G96: 0.01 | H96: 2.43 | I96: 0.00 | J96: 0.11 | K96: 19.94 | L96: 10.80 | M96: 10.67 | N96: 0.24 | O96: ТТК
A97: Хлеб ржаной | B97: 45.00 | C97: 2.97 | D97: 0.54 | E97: 17.82 | F97: 89.10 | G97: 0.08 | H97: 0.00 | I97: 0.00 | J97: 0.63 | K97: 13.05 | L97: 67.50 | M97: 21.15 | N97: 1.76 | O97: табл 6 стр 144,Дели + 2012
A98: Итого: | B98: 665.00 | C98: =SUM(C91:C97) -> 25.74 | D98: =SUM(D91:D97) -> 21.79 | E98: 86.71 | F98: 698.78 | G98: 0.25 | H98: 19.22 | I98: 0.00 | J98: 5.91 | K98: 89.54 | L98: 341.78 | M98: 102.89 | N98: 6.04
A99: ПОЛДНИК
A100: Молоко кипяченое | B100: 180.00 | C100: 5.22 | D100: 4.50 | E100: 8.64 | F100: 96.30 | G100: 0.07 | H100: 2.34 | I100: 36.00 | J100: 0.00 | K100: 216.00 | L100: 162.00 | M100: 25.20 | N100: 0.18 | O100: №419 Сб дошк 2016
A101: (молоко)
A102: Печенье | B102: 40.00 | C102: 3.00 | D102: 3.92 | E102: 29.76 | F102: 166.80 | G102: 0.03 | H102: 0.00 | I102: 4.00 | J102: 1.40 | K102: 11.60 | L102: 36.00 | M102: 8.00 | N102: 0.84 | O102: табл 6 стр 136,Ддели +,2012
A103: Итого: | B103: 220.00 | C103: =C100+C102 -> 8.22 | D103: =D100+D102 -> 8.42 | E103: 38.40 | F103: 263.10 | G103: 0.10 | H103: 2.34 | I103: 40.00 | J103: 1.40 | K103: 227.60 | L103: 198.00 | M103: 33.20 | N103: 1.02
A104: Ужин:
A105: Фрикадельки рыбные отварные | B105: 80.00 | C105: 13.41 | D105: 2.82 | E105: 1.14 | F105: 88.00 | G105: 0.08 | H105: 1.33 | I105: 40.08 | J105: 0.66 | K105: 100.38 | L105: 182.94 | M105: 48.00 | N105: 0.93 | O105: №279 сб дошк 2016
A106: Картофель тушеный с овощами в соусе | B106: 140.00 | C106: 3.05 | D106: 11.75 | E106: 21.15 | F106: 201.60 | G106: 0.15 | H106: 18.64 | I106: 23.52 | J106: 3.68 | K106: 30.39 | L106: 83.13 | M106: 29.37 | N106: 1.12 | O106: №144 сбшк 2016
A107: Чай с мармеладом | B107: 160/13,5 | C107: 0.07 | D107: 0.02 | E107: 10.74 | F107: 43.34 | G107: 0.00 | H107: 0.02 | I107: 0.00 | J107: 0.00 | K107: 9.06 | L107: 2.38 | M107: 1.39 | N107: 0.24 | O107: № 411 сб дошк 2016
A108: Хлеб пшеничный | B108: 30.00 | C108: 2.28 | D108: 0.24 | E108: 14.76 | F108: 70.50 | G108: 0.03 | H108: 0.00 | I108: 0.00 | J108: 0.33 | K108: 6.00 | L108: 19.50 | M108: 4.20 | N108: 0.33 | O108: табл 6 стр 134,Дели + 2012
A109: Итого: | B109: 423.50 | C109: =C105+C106+C107+C108 -> 18.80 | D109: =D105+D106+D107+D108 -> 14.83 | E109: 47.79 | F109: 403.44 | G109: 0.26 | H109: 19.99 | I109: 63.60 | J109: 4.67 | K109: 145.82 | L109: 287.95 | M109: 82.96 | N109: 2.62
A110: ВСЕГО: | B110: =B86+B90+B98+B103+B109 -> 1914.50 | C110: =C86+C90+C98+C103+C109 -> 65.56 | D110: =D86+D90+D98+D103+D109 -> 58.90 | E110: 264.58 | F110: 1908.62 | G110: 0.78 | H110: 47.61 | I110: 174.92 | J110: 13.05 | K110: 725.29 | L110: 1083.29 | M110: 273.25 | N110: 14.67
A112: День 4 - ый
A113: Наименование блюд и | B113: Масса | C113: Пищевые вещества | F113: Энергетическая | G113: В1,мг | H113: С,мг | I113: A,мкг | J113: Е,мг | K113: Ca | L113: P | M113: Mg | N113: Fe | O113: Сборник
A114: продуктов | B114: порции | F114: ценность | O114: рецептур
C115: белки | D115: жиры | E115: угл-ды | F115: Ккал
A116: ЗАВТРАК
A117: Каша ячневая молочная с маслом сливочным | B117: 180/3 | C117: 3.91 | D117: 7.24 | E117: 25.02 | F117: 180.86 | G117: 0.08 | H117: 0.00 | I117: 11.98 | J117: 0.68 | K117: 32.90 | L117: 134.37 | M117: 19.19 | N117: 0.71 | O117: №229,сб дошк2016
A118: Кофейный напиток с молоком | B118: 180.00 | C118: 2.85 | D118: 2.41 | E118: 14.35 | F118: 90.54 | G118: 0.04 | H118: 1.17 | I118: 18.00 | J118: 0.00 | K118: 113.20 | L118: 81.00 | M118: 12.60 | N118: 0.12 | O118: №395 Дели2010
A119: Бутерброд с маслом сливочным, с повидлом | B119: 30/5/10 | C119: 2.35 | D119: 4.52 | E119: 17.39 | F119: 119.80 | G119: 0.03 | H119: 0.16 | I119: 20.00 | J119: 0.58 | K119: 8.10 | L119: 22.70 | M119: 4.60 | N119: 0.50
A120: Итого: | B120: 408.00 | C120: =C117+C118+C119 -> 9.11 | D120: =D117+D118+D119 -> 14.17 | E120: 56.76 | F120: 391.20 | G120: 0.15 | H120: 1.33 | I120: 49.98 | J120: 1.26 | K120: 154.20 | L120: 238.07 | M120: 36.39 | N120: 1.33
A121: 2 - ой ЗАВТРАК
A122: Фрукты свежие | B122: 150.00 | C122: 1.35 | D122: 0.30 | E122: 12.15 | F122: 64.50 | G122: 0.06 | H122: 90.00 | I122: 0.00 | J122: 0.30 | K122: 51.00 | L122: 34.50 | M122: 19.50 | N122: 0.45 | O122: №386 СБ
A123: (яблоки,или апельсин, или банан,или мандарин) | O123: дошк.2016
A124: Итого: | B124: =B122 -> 150.00 | C124: =C122 -> 1.35 | D124: 0.30 | E124: 12.15 | F124: 64.50 | G124: 0.06 | H124: 90.00 | I124: 0.00 | J124: 0.30 | K124: 51.00 | L124: 34.50 | M124: 19.50 | N124: 0.45
A125: ОБЕД
A126: Салат из свеклы отварной с яблоками | B126: 60.00 | C126: 0.65 | D126: 3.65 | E126: 6.72 | F126: 62.34 | G126: 0.01 | H126: 3.86 | I126: 0.00 | J126: 6.36 | K126: 17.56 | L126: 19.08 | M126: 10.10 | N126: 0.89 | O126: СБ дошк.2016 №39
A127: Суп картофельный с горохом на курином (костном) бульоне | B127: 200 | C127: 4.39 | D127: 4.21 | E127: 13.23 | F127: 118.60 | G127: 0.18 | H127: 4.66 | I127: 0.00 | J127: 1.94 | K127: 34.14 | L127: 70.48 | M127: 28.46 | N127: 1.64 | O127: СБ дошк.2016 №87
A128: Птица, тушеная в соусе с овощами | B128: 200.00 | C128: 17.79 | D128: 13.83 | E128: 17.20 | F128: 264.00 | G128: 0.19 | H128: 11.61 | I128: 50.00 | J128: 1.51 | K128: 78.72 | L128: 186.61 | M128: 44.61 | N128: 4.05 | O128: №319, 372 Сб дошк 2016
A129: Напиток из сухофруктов | B129: 180 | C129: 0.60 | D129: 0.08 | E129: 28.81 | F129: 119.52 | G129: 0.01 | H129: 0.65 | I129: 0.00 | J129: 0.46 | K129: 29.23 | L129: 21.10 | M129: 15.71 | N129: 0.63 | O129: №394 Сб дошк 2016
A130: Хлеб пшеничный | B130: 25.00 | C130: 1.90 | D130: 0.20 | E130: 12.30 | F130: 58.75 | G130: 0.03 | J130: 0.28 | K130: 5.00 | L130: 16.25 | M130: 3.50 | N130: 0.28 | O130: табл 6 стр 134,Дели + 2012
A131: Хлеб ржаной | B131: 45.00 | C131: 2.97 | D131: 0.54 | E131: 17.82 | F131: 89.10 | G131: 0.08 | H131: 0.00 | I131: 0.00 | J131: 0.63 | K131: 13.05 | L131: 67.50 | M131: 21.15 | N131: 1.76 | O131: табл 6 стр 144,Дели + 2012
A132: Итого: | B132: 710.00 | C132: =C126+C127+C128+C129+C130+C131 -> 28.30 | D132: =D126+D127+D128+D129+D130+D131 -> 22.51 | E132: 96.08 | F132: 712.31 | G132: 0.50 | H132: 20.78 | I132: 50.00 | J132: 11.17 | K132: 177.70 | L132: 381.02 | M132: 123.54 | N132: 9.24
A133: ПОЛДНИК
A134: Кисломолочный напиток | B134: 180.00 | C134: 5.40 | D134: 1.80 | E134: 7.20 | F134: 66.60 | G134: 0.07 | H134: 1.44 | I134: 36.00 | J134: 0.00 | K134: 216.00 | L134: 176.40 | M134: 27.00 | N134: 0.18 | O134: №420 СБ дошк 2016
A135: (кефир,ряженка,катык,напиток ацидофильный)
A136: Булочка с сахаром | B136: 70.00 | C136: 5.32 | D136: 3.64 | E136: 34.24 | F136: 191.33 | G136: 0.09 | H136: 0.21 | I136: 6.42 | J136: 1.47 | K136: 14.11 | L136: 52.65 | M136: 9.42 | N136: 0.69 | O136: №442 СБ шк 2017
A137: Итого: | B137: 250.00 | C137: =C134+C136 -> 10.72 | D137: =D134+D136 -> 5.44 | E137: 41.44 | F137: 257.93 | G137: 0.17 | H137: 1.65 | I137: 42.42 | J137: 1.47 | K137: 230.11 | L137: 229.05 | M137: 36.42 | N137: 0.87
A138: УЖИН
A139: Омлет с сыром | B139: 150.00 | C139: 13.94 | D139: 24.83 | E139: 2.64 | F139: 289.66 | G139: 0.10 | H139: 0.25 | I139: 324.57 | J139: 0.75 | K139: 103.09 | L139: 225.78 | M139: 16.14 | N139: 2.64 | O139: №229,сб дошк2016
A140: Чай с сахаром | B140: 180/6 | C140: 0.06 | D140: 0.02 | E140: 6.02 | F140: 24.10 | G140: 0.00 | H140: 0.03 | I140: 0.00 | J140: 0.00 | K140: 9.77 | L140: 2.52 | M140: 1.26 | N140: 0.23 | O140: №411 сб дошк 2016
A141: Хлеб пшеничный | B141: 30.00 | C141: 2.28 | D141: 0.24 | E141: 14.76 | F141: 70.50 | G141: 0.03 | H141: 0.00 | I141: 0.00 | J141: 0.33 | K141: 6.00 | L141: 19.50 | M141: 4.20 | N141: 0.33 | O141: табл 6 стр 134,Дели + 2012
A142: Итого: | B142: 366.00 | C142: =C139+C140+C141 -> 16.28 | D142: =D139+D140+D141 -> 25.09 | E142: 23.42 | F142: 384.26 | G142: 0.14 | H142: 0.28 | I142: 324.57 | J142: 1.08 | K142: 118.85 | L142: 247.80 | M142: 21.60 | N142: 3.20
A143: ВСЕГО: | B143: =B120+B124+B132+B137+B142 -> 1884.00 | C143: 65.76 | D143: 67.51 | E143: =E120+E124+E132+E137+E142 -> 229.85 | F143: 1810.20 | G143: 1.01 | H143: 114.04 | I143: 466.96 | J143: 15.28 | K143: 731.86 | L143: 1130.44 | M143: 237.44 | N143: 15.09
A145: День 5 - ый
A146: Наименование блюд и | B146: Масса | C146: Пищевые вещества | F146: Энергетическая | G146: В1,мг | H146: С,мг | I146: A,мкг | J146: Е,мг | K146: Ca | L146: P | M146: Mg | N146: Fe | O146: Сборник
A147: продуктов | B147: порции | F147: ценность | O147: рецептур
C148: белки | D148: жиры | E148: угл-ды | F148: Ккал
A149: ЗАВТРАК
A150: Суп молочный с вермишелью | B150: 200.00 | C150: 4.38 | D150: 3.80 | E150: 14.36 | F150: 120.00 | G150: 0.07 | H150: 0.66 | I150: 26.40 | J150: 0.30 | K150: 130.40 | L150: 109.50 | M150: 21.34 | N150: 0.52 | O150: №100,сб дошк 2016
A151: Какао с молоком | B151: 180.00 | C151: 3.67 | D151: 3.19 | E151: 15.82 | F151: 106.74 | G151: 0.05 | H151: 1.43 | I151: 21.96 | K151: 137.00 | L151: 112.10 | M151: 19.21 | N151: 0.43 | O151: №397 Дели2010
A152: Бутерброд с сыром, маслом сливочным | B152: 30/15/5 | C152: 6.24 | D152: 8.49 | E152: 15.49 | F152: 163.10 | G152: 0.04 | H152: 0.11 | I152: 51.50 | J152: 0.62 | K152: 156.90 | L152: 111.00 | M152: 12.15 | N152: 0.48 | O152: №3 сб дошк2016
A153: Итого: | B153: 430.00 | C153: =C150+C151+C152 -> 14.28 | D153: =D150+D151+D152 -> 15.48 | E153: 45.67 | F153: 389.84 | G153: 0.16 | H153: 2.20 | I153: 99.86 | J153: 0.92 | K153: 424.30 | L153: 332.60 | M153: 52.70 | N153: 1.43
A154: 2 - ой ЗАВТРАК
A155: Сок | B155: 200.00 | C155: 1.00 | E155: 20.20 | F155: 84.80 | G155: 0.02 | H155: 4.00 | J155: 0.20 | K155: 14.00 | L155: 14.00 | M155: 8.00 | N155: 2.80 | O155: №418 сб дошк 2016
A156: в ассортименте в инд.упаковке
A157: Итого: | B157: =B155 -> 200.00 | C157: =C155 -> 1.00 | D157: =D155 -> 0.00 | E157: 20.20 | F157: 84.80 | G157: 0.02 | H157: 4.00 | I157: 0.00 | J157: 0.20 | K157: 14.00 | L157: 14.00 | M157: 8.00 | N157: 2.80
A158: ОБЕД
A159: Огурцы свежие порционно | B159: 60.00 | C159: 0.42 | D159: 0.06 | E159: 1.14 | F159: 7.20 | G159: 0.02 | H159: 2.94 | J159: 0.06 | K159: 13.80 | L159: 25.20 | M159: 8.40 | N159: 0.36 | O159: №71 сб шк 2017
A160: Суп из овощей на мясном бульоне со сметаной | B160: 180/7 | C160: 1.32 | D160: 4.64 | E160: 6.84 | F160: 79.91 | G160: 0.05 | H160: 7.50 | I160: 6.99 | J160: 1.69 | K160: 31.25 | L160: 39.74 | M160: 15.57 | N160: 0.57 | O160: ТТК 535 23,12,2020
A161: Гуляш из отварной говядины | B161: 40/40 | C161: 10.69 | D161: 11.26 | E161: 2.62 | F161: 131.20 | G161: 0.01 | H161: 0.96 | K161: 18.88 | L161: 93.62 | M161: 16.22 | N161: 1.60 | O161: 293 сб дошк 2016
A162: Рис отварной рассыпчатый | B162: 130.00 | C162: 3.16 | D162: 4.66 | E162: 31.79 | F162: 181.74 | G162: 0.02 | J162: 0.24 | K162: 1.18 | L162: 52.82 | M162: 14.16 | N162: 0.46 | O162: №304 сб шк 2017
A163: Компот из яблок | B163: 180.00 | C163: 0.14 | D163: 0.14 | E163: 25.09 | F163: 103.14 | G163: 0.01 | H163: 0.81 | I163: 0.00 | J163: 0.07 | K163: 12.76 | L163: 3.96 | M163: 4.63 | N163: 0.86 | O163: №390 СБ дошк 2016
A164: Хлеб ржаной | B164: 45.00 | C164: 2.97 | D164: 0.54 | E164: 17.82 | F164: 89.10 | G164: 0.08 | H164: 0.00 | I164: 0.00 | J164: 0.63 | K164: 13.05 | L164: 67.50 | M164: 21.15 | N164: 1.76 | O164: табл 6 стр 144,Дели + 2012
A165: Итого: | B165: 682.00 | C165: =C159+C160+C161+C162+C163+C164 -> 18.71 | D165: =D159+D160+D161+D162+D163+D164 -> 21.31 | E165: 85.30 | F165: 623.84 | G165: 0.19 | H165: 12.21 | I165: 6.99 | J165: 2.70 | K165: 90.92 | L165: 282.85 | M165: 80.12 | N165: 5.60
A166: ПОЛДНИК
A167: Молоко кипяченое | B167: 180.00 | C167: 5.22 | D167: 4.50 | E167: 8.64 | F167: 96.30 | G167: 0.07 | H167: 2.34 | I167: 36.00 | J167: 0.00 | K167: 216.00 | L167: 162.00 | M167: 25.20 | N167: 0.18 | O167: №419 Сб дошк 2016
A168: (молоко)
A169: Печенье | B169: 20.00 | C169: 1.50 | D169: 1.96 | E169: 14.88 | F169: 83.40 | G169: 0.02 | H169: 0.00 | I169: 2.00 | J169: 0.70 | K169: 5.80 | L169: 18.00 | M169: 4.00 | N169: 0.42 | O169: табл 6 стр 136,Ддели +,2012
A170: Итого: | B170: 200.00 | C170: =C167+C169 -> 6.72 | D170: =D167+D169 -> 6.46 | E170: 23.52 | F170: 179.70 | G170: 0.09 | H170: 2.34 | I170: 38.00 | J170: 0.70 | K170: 221.80 | L170: 180.00 | M170: 29.20 | N170: 0.60
A171: УЖИН
A172: Запеканка картофельная с мясом птицы со сметанным соусом | B172: 150/30 | C172: 17.88 | D172: 18.84 | E172: 21.55 | F172: 317.99 | G172: 0.27 | H172: 5.12 | I172: 2.34 | J172: 3.84 | K172: 46.09 | L172: 303.34 | M172: 114.10 | N172: 4.11 | O172: №229,сб дошк2016
A173: Чай с сахаром и лимоном | B173: 180/6/7 | C173: 0.13 | D173: 0.03 | E173: 6.23 | F173: 26.48 | G173: 0.00 | H173: 2.83 | I173: 0.00 | J173: 0.01 | K173: 12.57 | L173: 4.06 | M173: 2.10 | N173: 0.27 | O173: №393 Дели2010
A174: Хлеб пшеничный | B174: 30.00 | C174: 2.28 | D174: 0.24 | E174: 14.76 | F174: 70.50 | G174: 0.03 | H174: 0.00 | I174: 0.00 | J174: 0.33 | K174: 6.00 | L174: 19.50 | M174: 4.20 | N174: 0.33 | O174: табл 6 стр 134,Дели + 2012
A175: Итого: | B175: 403.00 | C175: =C172+C173+C174 -> 20.29 | D175: =D172+D173+D174 -> 19.10 | E175: 42.54 | F175: 414.97 | G175: 0.31 | H175: 7.95 | I175: 2.34 | J175: 4.19 | K175: 64.65 | L175: 326.90 | M175: 120.40 | N175: 4.71
A176: ВСЕГО: | B176: =B153+B157+B165+B170+B175 -> 1915.00 | C176: =C153+C157+C165+C170+C175 -> 61.00 | D176: 62.35 | E176: 217.23 | F176: 1693.15 | G176: 0.77 | H176: 28.69 | I176: 147.19 | J176: 8.71 | K176: 815.67 | L176: 1136.35 | M176: 290.41 | N176: 15.13
A178: День 6 - ый
A179: Наименование блюд и | B179: Масса | C179: Пищевые вещества | F179: Энергетическая | G179: В1,мг | H179: С,мг | I179: A,мкг | J179: Е,мг | K179: Ca | L179: P | M179: Mg | N179: Fe | O179: Сборник
A180: продуктов | B180: порции | F180: ценность | O180: рецептур
C181: белки | D181: жиры | E181: угл-ды | F181: Ккал
A182: ЗАВТРАК
A183: Каша пшенная молочная с маслом сливочным | B183: 180/3 | C183: 5.04 | D183: 8.18 | E183: 28.77 | F183: 208.76 | G183: 0.14 | J183: 0.23 | K183: 13.88 | L183: 103.46 | M183: 35.87 | N183: 1.18 | O183: ТТК № 6Д
A184: Чай с молоком,сахаром | B184: 180/6 | C184: 2.67 | D184: 2.27 | E184: 10.34 | F184: 72.70 | G184: 0.04 | H184: 1.20 | I184: 18.00 | J184: 0.00 | K184: 117.77 | L184: 83.52 | M184: 13.86 | N184: 0.32 | O184: № 413 сб дошк 2016
A185: Бутерброд с маслом сливочным | B185: 30/5 | C185: 2.29 | D185: 4.50 | E185: 15.49 | F185: 111.60 | G185: 0.03 | H185: 0.00 | I185: 20.00 | J185: 0.56 | K185: 6.90 | L185: 21.00 | M185: 3.90 | N185: 0.37 | O185: №1 Дели2010
A186: Итого: | B186: 404.00 | C186: =C183+C184+C185 -> 10.01 | D186: =D183+D184+D185 -> 14.95 | E186: 54.60 | F186: 393.06 | G186: 0.21 | H186: 1.20 | I186: 38.00 | J186: 0.79 | K186: 138.54 | L186: 207.98 | M186: 53.63 | N186: 1.87
A187: 2 - ой ЗАВТРАК
A188: Фрукты свежие | B188: 100.00 | C188: 0.40 | D188: 0.40 | E188: 9.80 | F188: 47.00 | G188: 0.05 | H188: 10.00 | I188: 0.00 | J188: 0.48 | K188: 9.60 | L188: 33.60 | M188: 50.40 | N188: 0.72 | O188: №386 СБ
A189: (яблоки,или апельсин, или банан,или мандарин ) | O189: дошк.2016
A190: Итого: | B190: =B188 -> 100.00 | C190: =C188 -> 0.40 | D190: 0.40 | E190: 9.80 | F190: 47.00 | G190: 0.05 | H190: 10.00 | I190: 0.00 | J190: 0.48 | K190: 9.60 | L190: 33.60 | M190: 50.40 | N190: 0.72
A191: ОБЕД
A192: Помидоры свежие порционно | B192: 60.00 | C192: 0.66 | D192: 0.12 | E192: 2.28 | F192: 13.20 | G192: 0.04 | H192: 10.50 | J192: 0.42 | K192: 8.40 | L192: 15.60 | M192: 12.00 | N192: 0.54 | O192: №71 сб 2017
A194: Рассольник Домашний с куриными фрикадельками, со сметаной | B194: 180/15/7 | C194: 3.73 | D194: 6.69 | E194: 10.58 | F194: 124.61 | G194: 0.08 | H194: 9.63 | I194: 12.95 | J194: 1.76 | K194: 41.66 | L194: 67.24 | M194: 23.00 | N194: 0.96 | O194: №81 СБ дошк 2016
A195: Жаркое из отварной птицы по-домашнему | B195: 180.00 | C195: 16.66 | D195: 18.61 | E195: 17.05 | F195: 303.43 | G195: 0.12 | H195: 6.95 | I195: 0.00 | J195: 3.19 | K195: 31.37 | L195: 211.63 | M195: 43.69 | N195: 3.97 | O195: ТТК 580/а от 24.06.2020
A196: Кисель | B196: 180.00 | C196: 0.54 | D196: 0.09 | E196: 28.18 | F196: 115.24 | G196: 0.00 | H196: 0.99 | I196: 0.00 | J196: 0.00 | K196: 13.95 | L196: 14.67 | M196: 3.02 | N196: 0.32 | O196: №648 сбшк2004
A197: Хлеб ржаной | B197: 45.00 | C197: 2.97 | D197: 0.54 | E197: 17.82 | F197: 89.10 | G197: 0.08 | H197: 0.00 | I197: 0.00 | J197: 0.63 | K197: 13.05 | L197: 67.50 | M197: 21.15 | N197: 1.76 | O197: табл 6 стр 144,Дели + 2012
A198: Итого: | B198: 667.00 | C198: =C192+C194+C196+C195+C197 -> 24.56 | D198: =D192+D194+D196+D195+D197 -> 26.05 | E198: 75.91 | F198: 645.58 | G198: 0.32 | H198: 28.07 | I198: 12.95 | J198: 6.00 | K198: 108.43 | L198: 376.64 | M198: 102.87 | N198: 7.54
A199: ПОЛДНИК
A200: Печенье | B200: 40.00 | C200: 3.00 | D200: 3.92 | E200: 29.76 | F200: 166.80 | G200: 0.03 | H200: 0.00 | I200: 4.00 | J200: 1.40 | K200: 11.60 | L200: 36.00 | M200: 8.00 | N200: 0.84 | O200: табл 6 стр 136,Ддели +,2012
A201: Кисломолочный напиток | B201: 180.00 | C201: 5.22 | D201: 4.50 | E201: 7.56 | F201: 91.20 | G201: 0.05 | H201: 0.54 | I201: 36.00 | J201: 0.00 | K201: 212.40 | L201: 172.80 | M201: 28.80 | N201: 0.18 | O201: №420 Сб дошк 2016
A202: (кефир,ряженка,катык, напиток ацидофильный)
A203: Итого: | B203: 220.00 | C203: =C200+C201 -> 8.22 | D203: =D200+D201 -> 8.42 | E203: 37.32 | F203: 258.00 | G203: 0.09 | H203: 0.54 | I203: 40.00 | J203: 1.40 | K203: 224.00 | L203: 208.80 | M203: 36.80 | N203: 1.02
A204: УЖИН
A205: Вареники ленивые со сметанным соусом | B205: 130/20 | C205: 20.78 | D205: 11.03 | E205: 21.25 | F205: 267.41 | G205: 0.07 | H205: 0.51 | I205: 75.27 | J205: 0.50 | K205: 180.31 | L205: 256.49 | M205: 27.47 | N205: 0.85 | O205: № 217,330 сб шк 2017
A206: Напиток из шиповника | B206: 180/6 | C206: 0.61 | D206: 0.25 | E206: 18.68 | F206: 79.38 | G206: 0.01 | H206: 90.00 | I206: 0.00 | J206: 0.68 | K206: 19.21 | L206: 3.10 | M206: 3.10 | N206: 0.57 | O206: №399 сб дошк 2016
A207: Итого: | B207: 336.00 | C207: =C205+C206 -> 21.39 | D207: =D205+D206 -> 11.28 | E207: 39.94 | F207: 346.79 | G207: 0.09 | H207: 90.51 | I207: 75.27 | J207: 1.19 | K207: 199.52 | L207: 259.58 | M207: 30.56 | N207: 1.42
A208: ВСЕГО: | B208: =B186+B190+B198+B203+B207 -> 1727.00 | C208: =C186+C190+C198+C203+C207 -> 64.58 | D208: =D186+D190+D198+D203+D207 -> 61.10 | E208: =E186+E190+E198+E203+E207 -> 217.57 | F208: =F186+F190+F198+F203+F207 -> 1690.43 | G208: =G186+G190+G198+G203+G207 -> 0.75 | H208: =H186+H190+H198+H203+H207 -> 130.32 | I208: =I186+I190+I198+I203+I207 -> 166.22 | J208: =J186+J190+J198+J203+J207 -> 9.86 | K208: =K186+K190+K198+K203+K207 -> 680.09 | L208: =L186+L190+L198+L203+L207 -> 1086.61 | M208: =M186+M190+M198+M203+M207 -> 274.27 | N208: =N186+N190+N198+N203+N207 -> 12.57
A210: День 7 - ой
A211: Наименование блюд и | B211: Масса | C211: Пищевые вещества | F211: Энергетическая | G211: В1,мг | H211: С,мг | I211: A,мкг | J211: Е,мг | K211: Ca | L211: P | M211: Mg | N211: Fe | O211: Сборник
A212: продуктов | B212: порции | F212: ценность | O212: рецептур
... 126 more rows
